Workbook

Sheet CZ
O1: max stav 35611 GWh | R1: TECHNICKÁ KAPACITA V GWh/den
B2: ČR | K2: CZ DOM ROČNÍ SPOTŘEBA v GWh/kvartál | Q2: OBDOBÍ | R2: CZ/SK | S2: CZ/SK | T2: CZ/DE | U2: CZ/DE | V2: CZ/AT | W2: CZ/AT | X2: CZ/PL | Y2: CZ/PL | Z2: ZÁS | AA2: ZÁS | AC2: Domácí těžba
F3: nesmí zůstat prázdné | K3: VEL | L3: DOM | M3: LNG | N3: CNG | O3: POD | P3: ZAS | Q3: Rok_kvart | R3: ENTRY | S3: EXIT | T3: ENTRY | U3: EXIT | V3: ENTRY | W3: EXIT | X3: ENTRY | Y3: EXIT | Z3: ENTRY | AA3: EXIT | AC3: GWh/kvartal
A4: Poznámka | B4: Projekt | C4: Specifikace | D4: Stav | E4: Uvedení do provozu | F4: Hranice | G4: Typ | H4: Realizace | I4: Kapacita2 | J4: Poznámka | N4: =(19989+7)/1000*10.56 -> 211.15776 | P4: =34962 -> 34962 | Q4: 2019_Q4 | R4: 1640.41 | S4: 913.68 | T4: 2184.2 | U4: 1559.14 | V4: 0 | W4: 0 | X4: 0 | Y4: 28.05 | Z4: 676.49 | AA4: 487.69
B5: Capacity4Gas DE/CZ_fáze1 | C5: Brandov - Gaspool Hora sv kateřiny přimda | D5: FID | E5: 2019 | F5: CZ/DE | G5: ENTRY | H5: TRUE | I5: 665 | K5: 2402.07562 | L5: 10576.4349 | M5: 0.06845269487 | N5: 232.7132335 | O5: 20089.31795 | P5: 23511.71043 | Q5: 2020_Q1 | R5: 1640.41 | S5: 1246.68 | T5: 2184.2 | U5: 1559.14 | V5: 0 | W5: 0 | X5: 0 | Y5: 28.05 | Z5: 676.49 | AA5: 487.69 | AC5: 333.2433285
B6: Připojení přímo zákazník | C6: DN 80 PN 73,5, prumyslova zona | D6: FID | E6: 2020_Q1 | F6: CZ/DOM | G6: POD | H6: TRUE | I6: 0.3 | K6: 1544.990904 | L6: 2194.0032 | M6: 0.07135385711 | N6: 242.5760862 | O6: 9198.077951 | P6: 35511.71043 | Q6: 2020_Q2 | R6: 1640.41 | S6: 1246.68 | T6: 2184.2 | U6: 1559.14 | V6: 0 | W6: 0 | X6: 0 | Y6: 28.05 | Z6: 676.49 | AA6: 487.69 | AC6: 319.4403504
B7: Capacity4Gas SK/CZ | C7: Lanžhot - navýšení propojení mezi CZ SK | D7: FID | E7: 2020_Q1 | F7: CZ/SK | G7: EXIT | H7: TRUE | I7: 333 | K7: 3215.24076 | L7: 1279.8352 | M7: 0.0754512664 | N7: 256.5057257 | O7: 8282.077951 | P7: 35000 | Q7: 2020_Q3 | R7: 1640.41 | S7: 1246.68 | T7: 2638.2 | U7: 1559.14 | V7: 0 | W7: 0 | X7: 0 | Y7: 28.05 | Z7: 676.49 | AA7: 487.69 | AC7: 325.3559124
B8: Capacity4Gas DE/CZ_fáze2 | C8: Brandov - Gaspool Hora sv kateřiny přimda | D8: FID | E8: 2020_Q3 | F8: CZ/DE | G8: ENTRY | H8: TRUE | I8: 454 | K8: 2868.760892 | L8: 9086.0268 | M8: 0.08042218162 | N8: 273.4049546 | O8: 17355.05795 | P8: 27264.66545 | Q8: 2020_Q4 | R8: 1640.41 | S8: 1246.68 | T8: 2638.2 | U8: 1559.14 | V8: 0 | W8: 0 | X8: 0 | Y8: 28.05 | Z8: 676.49 | AA8: 487.69 | AC8: 372.6804088
B9: Moravia Capacity Extension | C9: Tvrdonice - Bezměrov | D9: nonFID | E9: 2023_Q2 | F9: CZ/DOM | G9: OBOJÍ | H9: FALSE | I9: 158 | K9: 2262.244859 | L9: 13667.82045 | M9: 0.07221759309 | N9: 257.9847979 | O9: 20280.0499 | P9: 4281.932767 | Q9: 2021_Q1 | R9: 1640.41 | S9: 1246.68 | T9: 2638.2 | U9: 1559.14 | V9: 0 | W9: 0 | X9: 0 | Y9: 28.05 | Z9: 676.49 | AA9: 487.69 | AC9: 317.7091445
B10: Připojení zásobníku plynu | C10: DN 500 | D10: FID | E10: 2022_Q2 | F10: ZÁS | G10: ENTRY | H10: TRUE | I10: 73 | K10: 1256.028856 | L10: 2226.003072 | M10: 0.07527831925 | N10: 268.9187101 | O10: 9331.677951 | P10: 16753.84288 | Q10: 2021_Q2 | R10: 1640.41 | S10: 1246.68 | T10: 2638.2 | U10: 1559.14 | V10: 0 | W10: 0 | X10: 0 | Y10: 28.05 | Z10: 676.49 | AA10: 487.69 | AC10: 304.5495942
B11: Připojení zásobníku plynu | C11: DN 500 | D11: FID | E11: 2022_Q2 | F11: ZÁS | G11: EXIT | H11: TRUE | I11: 94 | K11: 2274.617521 | L11: 1298.501792 | M11: 0.07960108605 | N11: 284.3610431 | O11: 8402.317951 | P11: 36376.40449 | Q11: 2021_Q3 | R11: 1640.41 | S11: 1246.68 | T11: 2638.2 | U11: 1559.14 | V11: 0 | W11: 0 | X11: 0 | Y11: 28.05 | Z11: 676.49 | AA11: 487.69 | AC11: 310.1894015
B12: Projekt Moravia | C12: Tvrodnice - Libhošť | D12: nonFID | E12: 2023_Q4 | F12: CZ/DOM | G12: EXIT | H12: FALSE | I12: 142 | J12: závisí na realizaci CZ/PL, 134-157 | K12: 3870.901265 | L12: 8726.40182 | M12: 0.08484540161 | N12: 303.0954488 | O12: 17519.781 | P12: 32041.64342 | Q12: 2021_Q4 | R12: 1640.41 | S12: 1246.68 | T12: 2638.2 | U12: 1559.14 | V12: 0 | W12: 0 | X12: 0 | Y12: 28.05 | Z12: 676.49 | AA12: 487.69 | AC12: 355.3078599
B13: Připojení elektrárny | C13: DN 200 PN 63 | D13: FID | E13: 2023_Q1 | F13: CZ/DOM | G13: VEL | H13: TRUE | I13: 5.3 | K13: 4135.458828 | L13: 13413.76509 | M13: 0.07582847274 | N13: 283.2563624 | O13: 20456.23712 | P13: 10225.14249 | Q13: 2022_Q1 | R13: 1640.41 | S13: 1246.68 | T13: 2638.2 | U13: 1559.14 | V13: 0 | W13: 0 | X13: 0 | Y13: 28.05 | Z13: 676.49 | AA13: 487.69 | AC13: 302.1749606
B14: Připojení přímo zákazník | C14: DN 100 PN 63, zkapalnovani plynu | D14: FID | E14: 2023_Q2 | F14: CZ/DOM | G14: POD | H14: TRUE | I14: 0.7 | K14: 1970.314675 | L14: 2256.661632 | M14: 0.07904223521 | N14: 295.261334 | O14: 9459.677951 | P14: 22697.0526 | Q14: 2022_Q2 | R14: 1640.41 | S14: 1246.68 | T14: 2638.2 | U14: 1559.14 | V14: 0 | W14: 0 | X14: 0 | Y14: 28.05 | Z14: 749.49 | AA14: 581.69 | AC14: 289.658838
B15: CZ-PL propojovací plynovod | C15: Tvrdonice - Hať PL-CZ | D15: non FID | E15: 2023_Q2 | F15: CZ/PL | G15: EXIT | H15: FALSE | I15: 153 | J15: nebude se realizovat | K15: 2721.379355 | L15: 1316.385952 | M15: 0.08358114036 | N15: 312.2163605 | O15: 8517.517951 | P15: 36376.40449 | Q15: 2022_Q3 | R15: 1640.41 | S15: 1246.68 | T15: 2638.2 | U15: 1559.14 | V15: 0 | W15: 0 | X15: 0 | Y15: 28.05 | Z15: 749.49 | AA15: 581.69 | AC15: 295.0228905
B16: CZ-PL propojovací plynovod | C16: Tvrdonice - Hať CZ-PL | D16: non FID | E16: 2023_Q2 | F16: CZ/PL | G16: ENTRY | H16: FALSE | I16: 219 | J16: nebude se realizovat | K16: 2438.906434 | L16: 10193.46918 | M16: 0.08908767169 | N16: 332.7859431 | O16: 17671.94269 | P16: 20278.59949 | Q16: 2022_Q4 | R16: 1640.41 | S16: 1246.68 | T16: 2638.2 | U16: 1559.14 | V16: 0 | W16: 0 | X16: 0 | Y16: 28.05 | Z16: 749.49 | AA16: 581.69 | AC16: 337.9353109
B17: Obousměrné AT-CZ propojení (BACI) | C17: Reinthal - Břeclav | D17: non FID | E17: 2026_Q1 | F17: CZ/AT | G17: OBOJÍ | H17: FALSE | I17: 201 | J17: PCI, min. 201 | K17: 2410.700726 | L17: 13413.76509 | M17: 0.07961989638 | N17: 308.5279268 | O17: 20630.15643 | P17: 1659.995168 | Q17: 2023_Q1 | R17: 1640.41 | S17: 1246.68 | T17: 2638.2 | U17: 1559.14 | V17: 0 | W17: 0 | X17: 0 | Y17: 28.05 | Z17: 749.49 | AA17: 581.69 | AC17: 286.6407766
B18: zvýšení kapacity zásobníků | D18: FID | E18: 2021_Q2 | F18: CZ/DOM | G18: ZAS | H18: TRUE | I18: 1400 | J18: zvyseni kapacity o | K18: 1231.649403 | L18: 2287.320192 | M18: 0.08299434697 | N18: 321.603958 | O18: 9625.950217 | P18: 16154.37719 | Q18: 2023_Q2 | R18: 1640.41 | S18: 1246.68 | T18: 2638.2 | U18: 1559.14 | V18: 0 | W18: 0 | X18: 0 | Y18: 28.05 | Z18: 749.49 | AA18: 581.69 | AC18: 274.7680818
B19: zvýšení kapacity zásobníků | D19: FID | E19: 2023_Q2 | F19: CZ/DOM | G19: ZAS | H19: TRUE | I19: 6000 | J19: zvyseni kapacity o | K19: 3042.882061 | L19: 1334.270112 | M19: 0.08776019738 | N19: 340.0716779 | O19: 8670.990217 | P19: 42275.2809 | Q19: 2023_Q3 | R19: 1640.41 | S19: 1246.68 | T19: 2638.2 | U19: 1559.14 | V19: 0 | W19: 0 | X19: 0 | Y19: 28.05 | Z19: 749.49 | AA19: 581.69 | AC19: 279.8563796
K20: 3433.295912 | L20: 9597.500655 | M20: 0.09354205527 | N20: 362.4764374 | O20: 17860.41799 | P20: 23928.09169 | Q20: 2023_Q4 | R20: 1640.41 | S20: 1246.68 | T20: 2638.2 | U20: 1559.14 | V20: 0 | W20: 0 | X20: 0 | Y20: 28.05 | Z20: 749.49 | AA20: 581.69 | AC20: 320.562762
K21: 2415.21875 | L21: 10625.80956 | M21: 0.0836008912 | N21: 333.7994913 | O21: 21124.16881 | P21: 9790.73272 | Q21: 2024_Q1 | R21: 1640.41 | S21: 1246.68 | T21: 2638.2 | U21: 1559.14 | V21: 0 | W21: 0 | X21: 0 | Y21: 28.05 | Z21: 749.49 | AA21: 581.69 | AC21: 271.1065927
K22: 2164.675614 | L22: 2349.6912 | M22: 0.08714406432 | N22: 347.9465819 | O22: 9886.350217 | P22: 24285.11474 | Q22: 2024_Q2 | R22: 1640.41 | S22: 1246.68 | T22: 2638.2 | U22: 1559.14 | V22: 0 | W22: 0 | X22: 0 | Y22: 28.05 | Z22: 749.49 | AA22: 581.69 | AC22: 259.8773255
K23: 2842.790254 | L23: 1370.6532 | M23: 0.09214820724 | N23: 367.9269952 | O23: 8905.350217 | P23: 42275.2809 | Q23: 2024_Q3 | R23: 1640.41 | S23: 1246.68 | T23: 2638.2 | U23: 1559.14 | V23: 0 | W23: 0 | X23: 0 | Y23: 28.05 | Z23: 749.49 | AA23: 581.69 | AC23: 264.6898686
K24: 2896.421183 | L24: 9934.577414 | M24: 0.09821915804 | N24: 392.1669316 | O24: 18254.01173 | P24: 23575.9911 | Q24: 2024_Q4 | R24: 1640.41 | S24: 1246.68 | T24: 2638.2 | U24: 1559.14 | V24: 0 | W24: 0 | X24: 0 | Y24: 28.05 | Z24: 749.49 | AA24: 581.69 | AC24: 303.1902131
K25: 2123.875218 | L25: 11425.26773 | M25: 0.08778093576 | N25: 359.0710557 | O25: 21292.18661 | P25: 3996.103348 | Q25: 2025_Q1 | R25: 1640.41 | S25: 1246.68 | T25: 2638.2 | U25: 1559.14 | V25: 0 | W25: 0 | X25: 0 | Y25: 28.05 | Z25: 749.49 | AA25: 581.69 | AC25: 255.5724088
K26: 3651.659353 | L26: 2380.34976 | M26: 0.09150126753 | N26: 374.2892058 | O26: 10014.35022 | P26: 18490.48537 | Q26: 2025_Q2 | R26: 1640.41 | S26: 1246.68 | T26: 2638.2 | U26: 1559.14 | V26: 0 | W26: 0 | X26: 0 | Y26: 28.05 | Z26: 749.49 | AA26: 581.69 | AC26: 244.9865693
K27: 4669.909949 | L27: 1388.53736 | M27: 0.09675561761 | N27: 395.7823126 | O27: 9020.550217 | P27: 42275.2809 | Q27: 2025_Q3 | R27: 1640.41 | S27: 1246.68 | T27: 2638.2 | U27: 1559.14 | V27: 0 | W27: 0 | X27: 0 | Y27: 28.05 | Z27: 749.49 | AA27: 581.69 | AC27: 249.5233577
K28: 2962.62812 | L28: 9635.359791 | M28: 0.1031301159 | N28: 421.8574259 | O28: 18399.11801 | P28: 26677.87957 | Q28: 2025_Q4 | R28: 1640.41 | S28: 1246.68 | T28: 2638.2 | U28: 1559.14 | V28: 0 | W28: 0 | X28: 0 | Y28: 28.05 | Z28: 749.49 | AA28: 581.69 | AC28: 285.8176642
G29: =7000*10.56 -> 73920 | K29: 2160.199958 | L29: 10997.93028 | M29: 0.1009480761 | N29: 422.7768821 | O29: 21412.54133 | P29: 9834.99185 | Q29: 2026_Q1 | R29: 1640.41 | S29: 1246.68 | T29: 2638.2 | U29: 1559.14 | V29: 0 | W29: 0 | X29: 0 | Y29: 28.05 | Z29: 749.49 | AA29: 581.69 | AC29: 240.0382248
K30: 3616.447148 | L30: 2405.882592 | M30: 0.1052264577 | N30: 440.6950127 | O30: 10120.95022 | P30: 24329.37387 | Q30: 2026_Q2 | R30: 1640.41 | S30: 1246.68 | T30: 2638.2 | U30: 1559.14 | V30: 0 | W30: 0 | X30: 0 | Y30: 28.05 | Z30: 749.49 | AA30: 581.69 | AC30: 230.0958131
K31: 5818.902015 | L31: 1403.431512 | M31: 0.1112689602 | N31: 466.001393 | O31: 9116.490217 | P31: 42275.2809 | Q31: 2026_Q3 | R31: 1640.41 | S31: 1246.68 | T31: 2638.2 | U31: 1559.14 | V31: 0 | W31: 0 | X31: 0 | Y31: 28.05 | Z31: 749.49 | AA31: 581.69 | AC31: 234.3568467
K32: 2638.427384 | L32: 10043.95845 | M32: 0.1185996333 | N32: 496.7027122 | O32: 18503.06073 | P32: 23960.63233 | Q32: 2026_Q4 | R32: 1640.41 | S32: 1246.68 | T32: 2638.2 | U32: 1559.14 | V32: 0 | W32: 0 | X32: 0 | Y32: 28.05 | Z32: 749.49 | AA32: 581.69 | AC32: 268.4451153
K33: 2330.292197 | L33: 11785.32713 | M33: 0.1110428837 | N33: 450.575603 | O33: 21533.90969 | P33: 2375.930966 | Q33: 2027_Q1 | R33: 1640.41 | S33: 1246.68 | T33: 2638.2 | U33: 1559.14 | V33: 0 | W33: 0 | X33: 0 | Y33: 28.05 | Z33: 749.49 | AA33: 581.69 | AC33: 224.5040409
K34: 3643.231538 | L34: 2431.7268 | M34: 0.1157491034 | N34: 469.671899 | O34: 10228.85022 | P34: 16870.31299 | Q34: 2027_Q2 | R34: 1640.41 | S34: 1246.68 | T34: 2638.2 | U34: 1559.14 | V34: 0 | W34: 0 | X34: 0 | Y34: 28.05 | Z34: 749.49 | AA34: 581.69 | AC34: 215.2050569
K35: 5465.548219 | L35: 1418.5073 | M35: 0.1223958563 | N35: 496.6422421 | O35: 9213.600217 | P35: 42275.2809 | Q35: 2027_Q3 | R35: 1640.41 | S35: 1246.68 | T35: 2638.2 | U35: 1559.14 | V35: 0 | W35: 0 | X35: 0 | Y35: 28.05 | Z35: 749.49 | AA35: 581.69 | AC35: 219.1903358
K36: 2750.772594 | L36: 8952.199267 | M36: 0.1304595967 | N36: 529.3622559 | O36: 18607.87885 | P36: 34567.5368 | Q36: 2027_Q4 | R36: 1640.41 | S36: 1246.68 | T36: 2638.2 | U36: 1559.14 | V36: 0 | W36: 0 | X36: 0 | Y36: 28.05 | Z36: 749.49 | AA36: 581.69 | AC36: 251.0725664
K37: 2328.34568 | L37: 10970.39141 | M37: 0.1221471721 | N37: 478.3743239 | O37: 21669.09284 | P37: 17914.51812 | Q37: 2028_Q1 | R37: 1640.41 | S37: 1246.68 | T37: 2638.2 | U37: 1559.14 | V37: 0 | W37: 0 | X37: 0 | Y37: 28.05 | Z37: 749.49 | AA37: 581.69 | AC37: 208.9698569
K38: 3420.802703 | L38: 2459.343456 | M38: 0.1273240138 | N38: 498.6487853 | O38: 10344.15022 | P38: 32408.90014 | Q38: 2028_Q2 | R38: 1640.41 | S38: 1246.68 | T38: 2638.2 | U38: 1559.14 | V38: 0 | W38: 0 | X38: 0 | Y38: 28.05 | Z38: 749.49 | AA38: 581.69 | AC38: 200.3143007
K39: 5059.660731 | L39: 1434.617016 | M39: 0.1346354419 | N39: 527.2830912 | O39: 9317.370217 | P39: 42275.2809 | Q39: 2028_Q3 | R39: 1640.41 | S39: 1246.68 | T39: 2638.2 | U39: 1559.14 | V39: 0 | W39: 0 | X39: 0 | Y39: 28.05 | Z39: 749.49 | AA39: 581.69 | AC39: 204.0238248
K40: 2915.569198 | L40: 9578.461775 | M40: 0.1435055563 | N40: 562.0217996 | O40: 18724.62794 | P40: 27291.80557 | Q40: 2028_Q4 | R40: 1640.41 | S40: 1246.68 | T40: 2638.2 | U40: 1559.14 | V40: 0 | W40: 0 | X40: 0 | Y40: 28.05 | Z40: 749.49 | AA40: 581.69 | AC40: 233.7000175
K41: 2691.838812 | L41: 11355.96668 | M41: 0.1343618893 | N41: 506.1730448 | O41: 21849.46768 | P41: 8129.225346 | Q41: 2029_Q1 | R41: 1640.41 | S41: 1246.68 | T41: 2638.2 | U41: 1559.14 | V41: 0 | W41: 0 | X41: 0 | Y41: 28.05 | Z41: 749.49 | AA41: 581.69 | AC41: 193.435673
K42: 3321.941316 | L42: 2492.349312 | M42: 0.1400564152 | N42: 527.6256716 | O42: 10481.95022 | P42: 22623.60737 | Q42: 2029_Q2 | R42: 1640.41 | S42: 1246.68 | T42: 2638.2 | U42: 1559.14 | V42: 0 | W42: 0 | X42: 0 | Y42: 28.05 | Z42: 749.49 | AA42: 581.69 | AC42: 185.4235445
K43: 4443.650587 | L43: 1453.870432 | M43: 0.1480989861 | N43: 557.9239403 | O43: 9441.390217 | P43: 42275.2809 | Q43: 2029_Q3 | R43: 1640.41 | S43: 1246.68 | T43: 2638.2 | U43: 1559.14 | V43: 0 | W43: 0 | X43: 0 | Y43: 28.05 | Z43: 749.49 | AA43: 581.69 | AC43: 188.8573139
K44: 3696.99169 | L44: 8541.178392 | M44: 0.157856112 | N44: 594.6813433 | O44: 18880.40621 | P44: 38275.2809 | Q44: 2029_Q4 | R44: 1640.41 | S44: 1246.68 | T44: 2638.2 | U44: 1559.14 | V44: 0 | W44: 0 | X44: 0 | Y44: 28.05 | Z44: 749.49 | AA44: 581.69 | AC44: 216.3274686
K45: 2968.107495 | L45: 10674.4823 | M45: 0.1477980783 | N45: 533.9717657 | O45: 22031.34927 | P45: 23766.78011 | Q45: 2030_Q1 | R45: 1640.41 | S45: 1246.68 | T45: 2638.2 | U45: 1559.14 | V45: 0 | W45: 0 | X45: 0 | Y45: 28.05 | Z45: 749.49 | AA45: 581.69 | AC45: 177.9014891
K46: 3030.267195 | L46: 2525.798126 | M46: 0.1540620567 | N46: 556.602558 | O46: 10621.59957 | P46: 36238.69023 | Q46: 2030_Q2 | R46: 1640.41 | S46: 1246.68 | T46: 2638.2 | U46: 1559.14 | V46: 0 | W46: 0 | X46: 0 | Y46: 28.05 | Z46: 749.49 | AA46: 581.69 | AC46: 170.5327883
K47: 2601.699207 | L47: 1473.38224 | M47: 0.1629088847 | N47: 588.5647894 | O47: 9567.074639 | P47: 36376.40449 | Q47: 2030_Q3 | R47: 1640.41 | S47: 1246.68 | T47: 2638.2 | U47: 1559.14 | V47: 0 | W47: 0 | X47: 0 | Y47: 28.05 | Z47: 749.49 | AA47: 581.69 | AC47: 173.6908029
K48: 3265.441742 | L48: 8977.639376 | M48: 0.1736417232 | N48: 627.340887 | O48: 19037.48576 | P48: 28354.33961 | Q48: 2030_Q4 | R48: 1640.41 | S48: 1246.68 | T48: 2638.2 | U48: 1559.14 | V48: 0 | W48: 0 | X48: 0 | Y48: 28.05 | Z48: 749.49 | AA48: 581.69 | AC48: 198.9549197
P49: 2169015.25
P50: 35000
P51: 35256.31
J52: 2020 | K52: =SUM(K5:K8) -> 10031.06818 | L52: =SUM(L5:L8) -> 23136.3001 | M52: =SUM(M5:M8) -> 0.29568 | N52: =SUM(N5:N8) -> 1005.2 | O52: =SUM(O5:O8) -> 54924.5318 | P52: 1465.6 | R52: =SUM(K52:Q52) -> 90562.99576
J53: 2021 | K53: =SUM(K9:K12) -> 9663.792501 | L53: =SUM(L9:L12) -> 25918.72713 | M53: 0.3119424 | N53: 1114.36 | O53: 55533.8268 | P53: 1486.976 | R53: =SUM(K53:P53) -> 93717.99437
J54: 2022 | K54: =SUM(K13:K16) -> 11266.05929 | L54: =SUM(L13:L16) -> 27180.28186 | M54: 0.32753952 | N54: 1223.52 | O54: 56105.37572 | P54: 1507.456 | R54: 97283.0204
J55: 2023 | K55: =SUM(K17:K20) -> 10118.5281 | L55: =SUM(L17:L20) -> 26632.85605 | M55: 0.343916496 | N55: 1332.68 | O55: 56787.51485 | P55: 1527.936 | R55: 96399.85892
J56: 2024 | K56: =SUM(K21:K24) -> 10319.1058 | L56: =SUM(L21:L24) -> 24280.73138 | M56: 0.3611123208 | N56: 1441.84 | O56: 58169.88097 | P56: 1569.6 | R56: 95781.51926
J57: 2025 | K57: =SUM(K25:K28) -> 13408.07264 | L57: =SUM(L25:L28) -> 24829.51464 | M57: 0.3791679368 | N57: 1551 | O57: 58726.20506 | P57: 1590.08 | R57: 100105.2515
J58: 2026 | K58: =SUM(K29:K32) -> 14233.97651 | L58: =SUM(L29:L32) -> 24851.20284 | M58: 0.4360431274 | N58: 1826.176 | O58: 59153.04249 | P58: 1607.136 | R58: 101671.9699
J59: 2027 | K59: =SUM(K33:K36) -> 14189.84455 | L59: =SUM(L33:L36) -> 24587.7605 | M59: 0.4796474401 | N59: 1946.252 | O59: 59584.23898 | P59: 1624.4 | R59: 101932.9757
J60: 2028 | K60: =SUM(K37:K40) -> 13724.37831 | L60: =SUM(L37:L40) -> 24442.81365 | M60: 0.5276121841 | N60: 2066.328 | O60: 60055.24122 | P60: 1642.848 | R60: 101932.1368
J61: 2029 | K61: =SUM(K41:K44) -> 14154.42241 | L61: =SUM(L41:L44) -> 23843.36481 | M61: 0.5803734025 | N61: 2186.404 | O61: 60653.21432 | P61: 1664.896 | R61: =SUM(K61:P61) -> 102502.8819
J62: 2030 | K62: =SUM(K45:K48) -> 11865.51564 | L62: =SUM(L45:L48) -> 23651.30204 | M62: =SUM(M45:M48) -> 0.6384107428 | N62: 2306.48 | O62: 61257.50925 | P62: 1687.239897 | R62: 100768.6852

Sheet AT
P1: max stav 92000 GWh | R1: TECHNICKÁ KAPACITA V GWh/den
B2: AT | K2: AT DOM ROČNÍ SPOTŘEBA v GWh/kvartál | Q2: OBDOBÍ | R2: AT/SK | S2: AT/SK | T2: AT/CZ | U2: AT/CZ | V2: AT/DE | W2: AT/DE | X2: AT/IT | Y2: AT/IT | Z2: AT/SLO | AA2: AT/SLO | AB2: AT/HU | AC2: AT/HU | AI2: Domácí výroba
F3: nesmí zůstat prázdné | K3: VEL | L3: DOM | M3: LNG | N3: CNG | O3: POD | P3: ZÁS | Q3: Rok_kvart | R3: ENTRY | S3: EXIT | T3: ENTRY | U3: EXIT | V3: ENTRY | W3: EXIT | X3: ENTRY | Y3: EXIT | Z3: ENTRY | AA3: EXIT | AB3: ENTRY | AC3: EXIT | AI3: GWh | AM3: AT/SK | AN3: AT/SK | AO3: AT/CZ | AP3: AT/CZ | AQ3: AT/DE | AR3: AT/DE | AS3: AT/IT | AT3: AT/IT | AU3: AT/SLO | AV3: AT/SLO | AW3: AT/HU | AX3: AT/HU
B4: Projekt | C4: Specifikace | D4: Stav | E4: Uvedení do provozu | F4: Hranice | G4: Typ | H4: Realizace | I4: Kapacita2 | J4: Poznámka | P4: 91615 | Q4: 2019_Q4 | R4: 2305 | S4: 246 | T4: 0 | U4: 0 | V4: 365 | W4: 547 | X4: 417 | Y4: 1200 | Z4: 0 | AA4: 112 | AB4: 0 | AC4: 153 | AM4: ENTRY | AN4: EXIT | AO4: ENTRY | AP4: EXIT | AQ4: ENTRY | AR4: EXIT | AS4: ENTRY | AT4: EXIT | AU4: ENTRY | AV4: EXIT | AW4: ENTRY | AX4: EXIT
B5: Elektrárna Mellach | C5: od roku 2020 výhradně na ZP | D5: FID | E5: 2020_Q1 | F5: AT/DOM | G5: VEL | H5: TRUE | I5: 40 | K5: 5355.999628 | L5: 7137.838976 | N5: 658.04895 | O5: 18378.56951 | P5: 66358.336 | Q5: 2020_Q1 | R5: 2305 | S5: 246 | T5: 0 | U5: 0 | V5: 365 | W5: 547 | X5: 417 | Y5: 1200 | Z5: 0 | AA5: 112 | AB5: 0 | AC5: 153 | AI5: 2282.2306 | AL5: 2019 | AM5: =R4 -> 2305 | AN5: =S4 -> 246 | AQ5: =V4 -> 365 | AR5: 547 | AS5: 417 | AT5: 1200 | AU5: 0 | AV5: 112 | AW5: 0 | AX5: 153
B6: Obousměrné AT-CZ propojení (BACI) | C6: Reinthal - Břeclav | D6: non FID | E6: 2024_Q2 | F6: AT/CZ | G6: OBOJÍ | H6: FALSE | I6: 201 | K6: 5979.434154 | L6: 2000.3 | N6: 658.04895 | O6: 8221.991621 | P6: 88458.336 | Q6: 2020_Q2 | R6: 2305 | S6: 246 | T6: 0 | U6: 0 | V6: 365 | W6: 547 | X6: 417 | Y6: 1200 | Z6: 0 | AA6: 112 | AB6: 0 | AC6: 153 | AI6: 2180.5928 | AL6: 2020 | AM6: =R5 -> 2305 | AN6: =S5 -> 246 | AQ6: =V5 -> 365 | AR6: =W5 -> 547 | AS6: =X5 -> 417 | AT6: =Y5 -> 1200 | AU6: =Z5 -> 0 | AV6: =AA5 -> 112 | AW6: =AB5 -> 0 | AX6: =AC5 -> 153
B7: Baumgarten propojení kapacit | C7: Baumgarten - Mosonmagyaróvár II | D7: nonFID | E7: 2021_Q4 | F7: AT/HU | G7: ENTRY | H7: FALSE | I7: 0 | J7: ¨PCI | K7: 4744.429834 | L7: 960.144 | N7: 658.04895 | O7: 6771.051923 | P7: 86640 | Q7: 2020_Q3 | R7: 2305 | S7: 246 | T7: 0 | U7: 0 | V7: 365 | W7: 547 | X7: 417 | Y7: 1200 | Z7: 0 | AA7: 112 | AB7: 0 | AC7: 153 | AI7: 2226.7918 | AL7: 2021 | AM7: 2305 | AN7: 246 | AQ7: 365 | AR7: 547 | AS7: =X10 -> 685 | AT7: 1200 | AU7: 161 | AV7: 112 | AW7: 0 | AX7: 153
B8: TAG reserve flow | C8: Arnoldstein | D8: FID | E8: 2020_Q4 | F8: AT/IT | G8: ENTRY | H8: TRUE | I8: 268 | K8: 8945.387085 | L8: 6910.540916 | N8: 658.04895 | O8: 15142.07859 | P8: 53101.7 | Q8: 2020_Q4 | R8: 2305 | S8: 246 | T8: 0 | U8: 0 | V8: 365 | W8: 547 | X8: 685 | Y8: 1200 | Z8: 161 | AA8: 112 | AB8: 0 | AC8: 153 | AI8: 2550.1848 | AL8: 2022 | AM8: 2305 | AN8: 246 | AQ8: 365 | AR8: 547 | AS8: =X11 -> 685 | AT8: 1200 | AU8: 161 | AV8: 112 | AW8: 0 | AX8: 153
B9: TAG reserve flow | C9: Murfeld | D9: FID | E9: 2020_Q4 | F9: AT/SLO | G9: ENTRY | H9: TRUE | I9: 161 | K9: 7785.285625 | L9: 7895.181241 | N9: 672.3504 | O9: 19381.19394 | P9: 18060.04 | Q9: 2021_Q1 | R9: 2305 | S9: 246 | T9: 0 | U9: 0 | V9: 365 | W9: 547 | X9: 685 | Y9: 1200 | Z9: 161 | AA9: 112 | AB9: 0 | AC9: 153 | AI9: 2075.48913 | AL9: 2023 | AM9: 2305 | AN9: 246 | AQ9: 365 | AR9: 547 | AS9: 685 | AT9: 1200 | AU9: 161 | AV9: 112 | AW9: 0 | AX9: 153
B10: TAG reserve flow | C10: Wetenfeld | D10: FID | E10: 2020_Q4 | F10: AT/DOM | H10: TRUE | I10: 429 | K10: 5606.752126 | L10: 2000.600045 | N10: 672.3504 | O10: 8670.534129 | P10: 40160.04 | Q10: 2021_Q2 | R10: 2305 | S10: 246 | T10: 0 | U10: 0 | V10: 365 | W10: 547 | X10: 685 | Y10: 1200 | Z10: 161 | AA10: 112 | AB10: 0 | AC10: 153 | AI10: 1983.05844 | AL10: 2024 | AM10: 2305 | AN10: 246 | AQ10: 365 | AR10: 547 | AS10: 685 | AT10: 1200 | AU10: 161 | AV10: 112 | AW10: 0 | AX10: 153
B11: ROHUAT | C11: propojení Rumunsko - Maďarsko-Rakousko | D11: nonFID | H11: FALSE | K11: 5088.655809 | L11: 960.2880216 | N11: 672.3504 | O11: 7140.439871 | P11: 86640 | Q11: 2021_Q3 | R11: 2305 | S11: 246 | T11: 0 | U11: 0 | V11: 365 | W11: 547 | X11: 685 | Y11: 1200 | Z11: 161 | AA11: 112 | AB11: 0 | AC11: 153 | AI11: 2025.07239 | AL11: 2025 | AM11: 2305 | AN11: 246 | AQ11: 365 | AR11: 547 | AS11: 685 | AT11: 1200 | AU11: 161 | AV11: 112 | AW11: 0 | AX11: 153
B12: Baumgarten - Mosonmagyaróvár II | C12: Baumgarten - Mosonmagyaróvár II | D12: nonFID | E12: 2023_Q3 | F12: AT/HU | G12: EXIT | H12: FALSE | I12: 256.8 | K12: 7296.947641 | L12: 6036.886844 | N12: 672.3504 | O12: 16094.996 | P12: 70411.5 | Q12: 2021_Q4 | R12: 2305 | S12: 246 | T12: 0 | U12: 0 | V12: 365 | W12: 547 | X12: 685 | Y12: 1200 | Z12: 161 | AA12: 112 | AB12: 0 | AC12: 153 | AI12: 2319.17004 | AL12: 2026 | AM12: 2305 | AN12: 246 | AQ12: 365 | AR12: 547 | AS12: 685 | AT12: 1200 | AU12: 161 | AV12: 112 | AW12: 0 | AX12: 153
B13: BACI | C13: CZ-AT propojeni | D13: nonFID | E13: 2026_Q1 | F13: AT/CZ | G13: OBOJÍ | H13: FALSE | I13: 201 | K13: 8103.394754 | L13: 7129.823168 | N13: 686.65185 | O13: 19851.23583 | P13: 43556.34499 | Q13: 2022_Q1 | R13: 2305 | S13: 246 | T13: 0 | U13: 0 | V13: 365 | W13: 547 | X13: 685 | Y13: 1200 | Z13: 161 | AA13: 112 | AB13: 0 | AC13: 153 | AI13: 1868.74766 | AL13: 2027 | AM13: 2305 | AN13: 246 | AQ13: 365 | AR13: 547 | AS13: 685 | AT13: 1200 | AU13: 161 | AV13: 112 | AW13: 0 | AX13: 153
B14: TAG reverse flow | C14: Murfeld | D14: FID | E14: 2020_Q4 | F14: AT/SLO | G14: EXIT | H14: TRUE | I14: 101 | K14: 6037.470733 | L14: 2000.900135 | N14: 686.65185 | O14: 8880.816028 | P14: 65656.34499 | Q14: 2022_Q2 | R14: 2305 | S14: 246 | T14: 0 | U14: 0 | V14: 365 | W14: 547 | X14: 685 | Y14: 1200 | Z14: 161 | AA14: 112 | AB14: 0 | AC14: 153 | AI14: 1785.52408 | AL14: 2028 | AM14: 2305 | AN14: 246 | AQ14: 365 | AR14: 547 | AS14: 685 | AT14: 1200 | AU14: 161 | AV14: 112 | AW14: 0 | AX14: 153
K15: 5077.587357 | L15: 960.4320648 | N15: 686.65185 | O15: 7313.6132 | P15: 86640 | Q15: 2022_Q3 | R15: 2305 | S15: 246 | T15: 0 | U15: 0 | V15: 365 | W15: 547 | X15: 685 | Y15: 1200 | Z15: 161 | AA15: 112 | AB15: 0 | AC15: 153 | AI15: 1823.35298 | AL15: 2029 | AM15: 2305 | AN15: 246 | AQ15: 365 | AR15: 547 | AS15: 685 | AT15: 1200 | AU15: 161 | AV15: 112 | AW15: 0 | AX15: 153
K16: 6635.022051 | L16: 6139.697657 | N16: 686.65185 | O16: 16616.30477 | P16: 66865.23962 | Q16: 2022_Q4 | R16: 2305 | S16: 246 | T16: 0 | U16: 0 | V16: 365 | W16: 547 | X16: 685 | Y16: 1200 | Z16: 161 | AA16: 112 | AB16: 0 | AC16: 153 | AI16: 2088.15528 | AL16: 2030 | AM16: 2305 | AN16: 246 | AQ16: 365 | AR16: 547 | AS16: 685 | AT16: 1200 | AU16: 161 | AV16: 112 | AW16: 0 | AX16: 153
K17: 6275.736395 | L17: 7332.917401 | N17: 700.9533 | O17: 18863.19989 | P17: 36704.45431 | Q17: 2023_Q1 | R17: 2305 | S17: 246 | T17: 0 | U17: 0 | V17: 365 | W17: 547 | X17: 685 | Y17: 1200 | Z17: 161 | AA17: 112 | AB17: 0 | AC17: 153 | AI17: 1662.00619
K18: 4635.873476 | L18: 2001.20027 | N18: 700.9533 | O18: 8438.79995 | P18: 58804.45431 | Q18: 2023_Q2 | R18: 2305 | S18: 246 | T18: 0 | U18: 0 | V18: 365 | W18: 547 | X18: 685 | Y18: 1200 | Z18: 161 | AA18: 112 | AB18: 0 | AC18: 153 | AI18: 1587.98972
K19: 4645.263452 | L19: 960.5761296 | N19: 700.9533 | O19: 6949.599959 | P19: 86640 | Q19: 2023_Q3 | R19: 2305 | S19: 246 | T19: 0 | U19: 0 | V19: 365 | W19: 547 | X19: 685 | Y19: 1200 | Z19: 161 | AA19: 112 | AB19: 0 | AC19: 153 | AI19: 1621.63357
K20: 6282.636139 | L20: 5985.32133 | N20: 700.9533 | O20: 15914.71341 | P20: 68906.3 | Q20: 2023_Q4 | R20: 2305 | S20: 246 | T20: 0 | U20: 0 | V20: 365 | W20: 547 | X20: 685 | Y20: 1200 | Z20: 161 | AA20: 112 | AB20: 0 | AC20: 153 | AI20: 1857.14052
K21: 6019.682155 | L21: 7167.191472 | N21: 715.25475 | O21: 19404.844 | P21: 39869.87012 | Q21: 2024_Q1 | R21: 2305 | S21: 246 | T21: 0 | U21: 0 | V21: 365 | W21: 547 | X21: 685 | Y21: 1200 | Z21: 161 | AA21: 112 | AB21: 0 | AC21: 153 | AI21: 1455.26472
K22: 5093.64893 | L22: 2001.50045 | N22: 715.25475 | O22: 8681.114423 | P22: 61969.87012 | Q22: 2024_Q2 | R22: 2305 | S22: 246 | T22: 0 | U22: 0 | V22: 365 | W22: 547 | X22: 685 | Y22: 1200 | Z22: 161 | AA22: 112 | AB22: 0 | AC22: 153 | AI22: 1390.45536
K23: 3786.418286 | L23: 960.720216 | N23: 715.25475 | O23: 7149.153054 | P23: 86640 | Q23: 2024_Q3 | R23: 2305 | S23: 246 | T23: 0 | U23: 0 | V23: 365 | W23: 547 | X23: 685 | Y23: 1200 | Z23: 161 | AA23: 112 | AB23: 0 | AC23: 153 | AI23: 1419.91416
K24: 5766.534569 | L24: 6726.485735 | N24: 715.25475 | O24: 16501.75619 | P24: 51144.94 | Q24: 2024_Q4 | R24: 2305 | S24: 246 | T24: 0 | U24: 0 | V24: 365 | W24: 547 | X24: 685 | Y24: 1200 | Z24: 161 | AA24: 112 | AB24: 0 | AC24: 153 | AI24: 1626.12576
K25: 4834.528755 | L25: 7102.443938 | N25: 729.5562 | O25: 18508.13686 | P25: 22023.39776 | Q25: 2025_Q1 | R25: 2305 | S25: 246 | T25: 0 | U25: 0 | V25: 365 | W25: 547 | X25: 685 | Y25: 1200 | Z25: 161 | AA25: 112 | AB25: 0 | AC25: 153 | AI25: 1248.52325
K26: 4993.980958 | L26: 2001.800675 | N26: 729.5562 | O26: 8279.955962 | P26: 44123.39776 | Q26: 2025_Q2 | R26: 2305 | S26: 246 | T26: 0 | U26: 0 | V26: 365 | W26: 547 | X26: 685 | Y26: 1200 | Z26: 161 | AA26: 112 | AB26: 0 | AC26: 153 | AI26: 1192.921
K27: 3927.42009 | L27: 960.8643241 | N27: 729.5562 | O27: 6818.787263 | P27: 86640 | Q27: 2025_Q3 | R27: 2305 | S27: 246 | T27: 0 | U27: 0 | V27: 365 | W27: 547 | X27: 685 | Y27: 1200 | Z27: 161 | AA27: 112 | AB27: 0 | AC27: 153 | AI27: 1218.19475
K28: 4555.109629 | L28: 5905.119926 | N28: 729.5562 | O28: 15864.23985 | P28: 68034.89306 | Q28: 2025_Q4 | R28: 2305 | S28: 246 | T28: 0 | U28: 0 | V28: 365 | W28: 547 | X28: 685 | Y28: 1200 | Z28: 161 | AA28: 112 | AB28: 0 | AC28: 153 | AI28: 1395.111
K29: 4178.990104 | L29: 8313.389145 | N29: 743.85765 | O29: 18781.39505 | P29: 22996.60581 | Q29: 2026_Q1 | R29: 2305 | S29: 246 | T29: 0 | U29: 0 | V29: 365 | W29: 547 | X29: 685 | Y29: 1200 | Z29: 161 | AA29: 112 | AB29: 0 | AC29: 153 | AI29: 1041.78178
K30: 4173.688316 | L30: 2002.100945 | N30: 743.85765 | O30: 8402.203047 | P30: 45096.60581 | Q30: 2026_Q2 | R30: 2305 | S30: 246 | T30: 0 | U30: 0 | V30: 365 | W30: 547 | X30: 685 | Y30: 1200 | Z30: 161 | AA30: 112 | AB30: 0 | AC30: 153 | AI30: 995.38664
K31: 3923.215697 | L31: 961.0084537 | N31: 743.85765 | O31: 6919.461332 | P31: 86640 | Q31: 2026_Q3 | R31: 2305 | S31: 246 | T31: 0 | U31: 0 | V31: 365 | W31: 547 | X31: 685 | Y31: 1200 | Z31: 161 | AA31: 112 | AB31: 0 | AC31: 153 | AI31: 1016.47534
K32: 3698.958175 | L32: 5849.088896 | N32: 743.85765 | O32: 16226.3548 | P32: 67966.56564 | Q32: 2026_Q4 | R32: 2305 | S32: 246 | T32: 0 | U32: 0 | V32: 365 | W32: 547 | X32: 685 | Y32: 1200 | Z32: 161 | AA32: 112 | AB32: 0 | AC32: 153 | AI32: 1164.09624
K33: 3383.80276 | L33: 7460.465994 | N33: 758.1591 | O33: 17146.03574 | P33: 32582.40898 | Q33: 2027_Q1 | R33: 2305 | S33: 246 | T33: 0 | U33: 0 | V33: 365 | W33: 547 | X33: 685 | Y33: 1200 | Z33: 161 | AA33: 112 | AB33: 0 | AC33: 153 | AI33: 835.04031
K34: 3388.302407 | L34: 2002.40126 | N34: 758.1591 | O34: 7670.594938 | P34: 54682.40898 | Q34: 2027_Q2 | R34: 2305 | S34: 246 | T34: 0 | U34: 0 | V34: 365 | W34: 547 | X34: 685 | Y34: 1200 | Z34: 161 | AA34: 112 | AB34: 0 | AC34: 153 | AI34: 797.85228
K35: 3085.102732 | L35: 961.152605 | N35: 758.1591 | O35: 6316.960537 | P35: 86640 | Q35: 2027_Q3 | R35: 2305 | S35: 246 | T35: 0 | U35: 0 | V35: 365 | W35: 547 | X35: 685 | Y35: 1200 | Z35: 161 | AA35: 112 | AB35: 0 | AC35: 153 | AI35: 814.75593
K36: 2687.598722 | L36: 5812.846717 | N36: 758.1591 | O36: 14931.15486 | P36: 67458.13304 | Q36: 2027_Q4 | R36: 2305 | S36: 246 | T36: 0 | U36: 0 | V36: 365 | W36: 547 | X36: 685 | Y36: 1200 | Z36: 161 | AA36: 112 | AB36: 0 | AC36: 153 | AI36: 933.08148
K37: 2566.481934 | L37: 6870.884706 | N37: 772.46055 | O37: 16154.05523 | P37: 38597.67135 | Q37: 2028_Q1 | R37: 2305 | S37: 246 | T37: 0 | U37: 0 | V37: 365 | W37: 547 | X37: 685 | Y37: 1200 | Z37: 161 | AA37: 112 | AB37: 0 | AC37: 153 | AI37: 628.29884
K38: 2525.243262 | L38: 2002.701621 | N38: 772.46055 | O38: 7226.814181 | P38: 60697.67135 | Q38: 2028_Q2 | R38: 2305 | S38: 246 | T38: 0 | U38: 0 | V38: 365 | W38: 547 | X38: 685 | Y38: 1200 | Z38: 161 | AA38: 112 | AB38: 0 | AC38: 153 | AI38: 600.31792
K39: 2174.956933 | L39: 961.2967779 | N39: 772.46055 | O39: 5951.494031 | P39: 86640 | Q39: 2028_Q3 | R39: 2305 | S39: 246 | T39: 0 | U39: 0 | V39: 365 | W39: 547 | X39: 685 | Y39: 1200 | Z39: 161 | AA39: 112 | AB39: 0 | AC39: 153 | AI39: 613.03652
K40: 2039.989062 | L40: 6557.588275 | N40: 772.46055 | O40: 14179.07152 | P40: 48925.43651 | Q40: 2028_Q4 | R40: 2305 | S40: 246 | T40: 0 | U40: 0 | V40: 365 | W40: 547 | X40: 685 | Y40: 1200 | Z40: 161 | AA40: 112 | AB40: 0 | AC40: 153 | AI40: 702.06672
K41: 1417.807898 | L41: 7164.192083 | N41: 786.762 | O41: 13737.54889 | P41: 15432.6504 | Q41: 2029_Q1 | R41: 2305 | S41: 246 | T41: 0 | U41: 0 | V41: 365 | W41: 547 | X41: 685 | Y41: 1200 | Z41: 161 | AA41: 112 | AB41: 0 | AC41: 153 | AI41: 421.55737
K42: 1309.483065 | L42: 2003.002026 | N42: 786.762 | O42: 6145.745555 | P42: 37532.6504 | Q42: 2029_Q2 | R42: 2305 | S42: 246 | T42: 0 | U42: 0 | V42: 365 | W42: 547 | X42: 685 | Y42: 1200 | Z42: 161 | AA42: 112 | AB42: 0 | AC42: 153 | AI42: 402.78356
K43: 1052.799494 | L43: 961.4409724 | N43: 786.762 | O43: 5061.202221 | P43: 86640 | Q43: 2029_Q3 | R43: 2305 | S43: 246 | T43: 0 | U43: 0 | V43: 365 | W43: 547 | X43: 685 | Y43: 1200 | Z43: 161 | AA43: 112 | AB43: 0 | AC43: 153 | AI43: 411.31711
K44: 833.6146453 | L44: 5735.583511 | N44: 786.762 | O44: 12153.79861 | P44: 66562.49999 | Q44: 2029_Q4 | R44: 2305 | S44: 246 | T44: 0 | U44: 0 | V44: 365 | W44: 547 | X44: 685 | Y44: 1200 | Z44: 161 | AA44: 112 | AB44: 0 | AC44: 153 | AI44: 471.05196
K45: 0 | L45: 7911.200184 | N45: 801.06345 | O45: 17839.20697 | P45: 22488.53599 | Q45: 2030_Q1 | R45: 2305 | S45: 246 | T45: 0 | U45: 0 | V45: 365 | W45: 547 | X45: 685 | Y45: 1200 | Z45: 161 | AA45: 112 | AB45: 0 | AC45: 153 | AI45: 214.8159
K46: 0 | L46: 2003.302476 | N46: 801.06345 | O46: 7980.697857 | P46: 44588.53599 | Q46: 2030_Q2 | R46: 2305 | S46: 246 | T46: 0 | U46: 0 | V46: 365 | W46: 547 | X46: 685 | Y46: 1200 | Z46: 161 | AA46: 112 | AB46: 0 | AC46: 153 | AI46: 205.2492
K47: 0 | L47: 961.5851885 | N47: 801.06345 | O47: 6572.339411 | P47: 86640 | Q47: 2030_Q3 | R47: 2305 | S47: 246 | T47: 0 | U47: 0 | V47: 365 | W47: 547 | X47: 685 | Y47: 1200 | Z47: 161 | AA47: 112 | AB47: 0 | AC47: 153 | AI47: 209.5977
K48: 0 | L48: 5590.495307 | N48: 801.06345 | O48: 14553.03727 | P48: 68628.74984 | Q48: 2030_Q4 | R48: 2305 | S48: 246 | T48: 0 | U48: 0 | V48: 365 | W48: 547 | X48: 685 | Y48: 1200 | Z48: 161 | AA48: 112 | AB48: 0 | AC48: 153 | AI48: 240.0372
J50: 2020 | K50: =SUM(K5:K8) -> 25025.2507 | L50: =SUM(L5:L8) -> 17008.82389 | M50: 0 | N50: 2632.1958 | O50: 48513.69164 | P50: =SUM(K50:O50)*0.045 -> 4193.098292 | Q50: =SUM(K50:P50) -> 97373.06033
B51: bioplyn, biomethan | C51: GWh | J51: 2021 | K51: =SUM(K9:K12) -> 25777.6412 | L51: =SUM(L9:L12) -> 16892.95615 | M51: 0 | N51: 2689.4016 | O51: 51287.16393 | P51: =SUM(K51:O51)*0.045 -> 4349.12233 | Q51: =SUM(K51:P51) -> 100996.2852
B52: 2014 | C52: 90 | J52: 2022 | K52: =SUM(K13:K16) -> 25853.4749 | L52: =SUM(L13:L16) -> 16230.85303 | M52: 0 | N52: 2746.6074 | O52: 52661.96983 | P52: 4387.180732 | Q52: 101880.0859
B53: 2015 | C53: 110 | J53: 2023 | K53: =SUM(K17:K20) -> 21839.50946 | L53: =SUM(L17:L20) -> 16280.01513 | M53: 0 | N53: 2803.8132 | O53: 50166.31321 | P53: 4099.034295 | Q53: 95188.6853
B54: 2016 | C54: 131 | J54: 2024 | K54: =SUM(K21:K24) -> 20666.28394 | L54: =SUM(L21:L24) -> 16855.89787 | M54: 0 | N54: 2861.019 | O54: 51736.86767 | P54: 4145.403082 | Q54: 96265.47156
B55: 2017 | C55: 149 | J55: 2025 | K55: =SUM(K25:K28) -> 18311.03943 | L55: =SUM(L25:L28) -> 15970.22886 | M55: 0 | N55: 2918.2248 | O55: 49471.11994 | P55: 3900.177586 | Q55: 90570.79062
B56: 2018 | C56: 171 | J56: 2026 | K56: =SUM(K29:K32) -> 15974.85229 | L56: =SUM(L29:L32) -> 17125.58744 | M56: 0 | N56: 2975.4306 | O56: 50329.41422 | P56: 3888.237805 | Q56: 90293.52236
B57: 2019 | C57: 162 | J57: 2027 | K57: =SUM(K33:K36) -> 12544.80662 | L57: =SUM(L33:L36) -> 16236.86658 | M57: 0 | N57: 3032.6364 | O57: 46064.74608 | P57: 3504.557505 | Q57: 81383.61318
B58: 2020 | C58: =16.029*B58-32186 -> 192.58 | J58: 2028 | K58: =SUM(K37:K40) -> 9306.671191 | L58: =SUM(L37:L40) -> 16392.47138 | M58: 0 | N58: 3089.8422 | O58: 43511.43496 | P58: 3253.518888 | Q58: 75553.93862
B59: 2021 | C59: =16.029*B59-32186 -> 208.609 | J59: 2029 | K59: =SUM(K41:K44) -> 4613.705102 | L59: =SUM(L41:L44) -> 15864.21859 | M59: 0 | N59: 3147.048 | O59: 37098.29527 | P59: 2732.547013 | Q59: 63455.81398
B60: 2022 | C60: 224.638 | J60: 2030 | K60: =SUM(K45:K48) -> 0 | L60: =SUM(L45:L48) -> 16466.58316 | M60: 0 | N60: 3204.2538 | O60: 46945.28151 | P60: =SUM(K60:O60)*0.04 -> 2664.644739 | Q60: 69280.7632
B61: 2023 | C61: 240.667
B62: 2024 | C62: 256.696
B63: 2025 | C63: 272.725
B64: 2026 | C64: 288.754
B65: 2027 | C65: 304.783
B66: 2028 | C66: 320.812
B67: 2029 | C67: 336.841
B68: 2030 | C68: 352.87

Sheet SK
R1: TECHNICKÁ KAPACITA V GWh/den
B2: SK | I2: =I8+I15 -> 231 | K2: SK DOM ROČNÍ SPOTŘEBA v GWh/kvartál | Q2: OBDOBÍ | R2: SK/CZ | S2: SK/CZ | T2: SK/AT | U2: SK/AT | V2: SK/UA | W2: SK/UA | X2: SK/HU | Y2: SK/HU | Z2: SK/PL | AA2: SK/PL | AB2: ZÁS | AC2: ZÁS | AE2: Domácí těžba | AJ2: SK/CZ | AK2: SK/CZ | AL2: SK/AT | AM2: SK/AT | AN2: SK/UA | AO2: SK/UA | AP2: SK/HU | AQ2: SK/HU | AR2: SK/PL | AS2: SK/PL
F3: nesmí zůstat prázdné | K3: VEL | L3: DOM | M3: LNG | N3: CNG | O3: POD | P3: ZÁS | Q3: Rok_kvart | R3: ENTRY | S3: EXIT | T3: ENTRY | U3: EXIT | V3: ENTRY | W3: EXIT | X3: ENTRY | Y3: EXIT | Z3: ENTRY | AA3: EXIT | AB3: ENTRY | AC3: EXIT | AE3: GWh | AJ3: ENTRY | AK3: EXIT | AL3: ENTRY | AM3: EXIT | AN3: ENTRY | AO3: EXIT | AP3: ENTRY | AQ3: EXIT | AR3: ENTRY | AS3: EXIT
B4: Projekt | C4: Specifikace | D4: Stav | E4: Uvedení do provozu | F4: Hranice | G4: Typ | H4: Realizace | I4: Kapacita2 | J4: Poznámka | P4: 41000 | Q4: 2019_Q4 | R4: 696.8 | S4: 400.4 | T4: 247.5 | U4: 1570 | V4: 2028 | W4: 280 | X4: 50.78 | Y4: 129.7 | Z4: 0 | AA4: 0 | AB4: =38.72*10.56 -> 408.8832 | AC4: =43.81*10.56 -> 462.6336 | AI4: 2019 | AJ4: =R4 -> 696.8 | AK4: =U4 -> 1570 | AL4: =T4 -> 247.5 | AM4: =U5 -> 1570 | AN4: =V4 -> 2028 | AO4: 280 | AP4: 50.78 | AQ4: 129.7 | AR4: 0 | AS4: 0
B5: NAFTA Velke Kapušany PZZP | C5: Veľké Kapušany | D5: nonFID | E5: =E10 -> 2025_Q2 | F5: ZÁS | G5: OBOJÍ | H5: FALSE | I5: =IF(Tabulka4[[#This Row],[Realizace]]=TRUE,39.6*0.98,0) -> 0 | J5: 2 % vodik | K5: 980 | L5: 5711.274848 | M5: 0 | N5: 14.40605731 | O5: 12041.78494 | P5: 29060.11999 | Q5: 2020_Q1 | R5: 1569.8 | S5: 457.4 | T5: 247.5 | U5: 1570 | V5: 2028 | W5: 280 | X5: 50.78 | Y5: 129.7 | Z5: 0 | AA5: 0 | AB5: 408.8832 | AC5: 462.6336 | AE5: 250.2581606 | AI5: 2020 | AJ5: =R6 -> 1569.8 | AK5: =U5 -> 1570 | AL5: =T5 -> 247.5 | AM5: =U6 -> 1570 | AN5: =V5 -> 2028 | AO5: =W5 -> 280 | AP5: =X5 -> 50.78 | AQ5: =Y5 -> 129.7 | AR5: =Z5 -> 0 | AS5: =AA5 -> 0
B6: Polsko-slovenské propojení | C6: Veľké Kapušany | D6: FID | E6: 2021_Q4 | F6: SK/PL | G6: ENTRY | H6: TRUE | I6: 144.6575342 | K6: 1243.916898 | L6: 1250.581824 | M6: 0 | N6: 15.01661486 | O6: 5398.164808 | P6: 40060.11999 | Q6: 2020_Q2 | R6: 1569.8 | S6: 457.4 | T6: 247.5 | U6: 1570 | V6: 2028 | W6: 280 | X6: 50.78 | Y6: 129.7 | Z6: 0 | AA6: 0 | AB6: 408.8832 | AC6: 462.6336 | AE6: 239.892438 | AI6: 2021 | AJ6: =R7 -> 1569.8 | AK6: 1570 | AL6: 247.5 | AM6: 1570 | AN6: 2028 | AO6: 280 | AP6: 50.78 | AQ6: 129.7 | AR6: 0 | AS6: 0
B7: Polsko-slovenské propojení | C7: Veľké Kapušany | D7: FID | E7: 2021_Q4 | F7: SK/PL | G7: EXIT | H7: TRUE | I7: 173.8783562 | K7: 1820.447 | L7: 729.506064 | M7: 0 | N7: 15.87892588 | O7: 4445.547489 | P7: 40600 | Q7: 2020_Q3 | R7: 1569.8 | S7: 457.4 | T7: 247.5 | U7: 1570 | V7: 2028 | W7: 280 | X7: 50.78 | Y7: 129.7 | Z7: 0 | AA7: 0 | AB7: 408.8832 | AC7: 462.6336 | AE7: 244.3348905 | AI7: 2022 | AJ7: 1569.8 | AK7: 1570 | AL7: 247.5 | AM7: 1570 | AN7: 2028 | AO7: 280 | AP7: 50.78 | AQ7: 129.7 | AR7: =Z13 -> 144.6575342 | AS7: =AA13 -> 173.8783562
B8: Capacity4Gas SK/CZ | C8: Lanžhot - navýšení propojení mezi CZ SK | D8: FID | E8: 2020_Q1 | F8: SK/CZ | G8: EXIT | H8: TRUE | I8: 57 | K8: 1799.077 | L8: 4906.454472 | M8: 0 | N8: 16.92506862 | O8: 9843.712297 | P8: 27448.49293 | Q8: 2020_Q4 | R8: 1569.8 | S8: 457.4 | T8: 247.5 | U8: 1570 | V8: 2028 | W8: 280 | X8: 50.78 | Y8: 129.7 | Z8: 0 | AA8: 0 | AB8: 408.8832 | AC8: 462.6336 | AE8: 279.8745109 | AI8: 2023 | AJ8: 1569.8 | AK8: 1570 | AL8: 247.5 | AM8: 1570 | AN8: 2028 | AO8: 280 | AP8: 50.78 | AQ8: 129.7 | AR8: =Z14 -> 144.6575342 | AS8: =AA14 -> 173.8783562
B9: Navýšenie reverzného toku zemného plynu v smere na Ukrajinu | C9: Budince | D9: nonFID | E9: 2023_Q2 | F9: SK/UA | G9: ENTRY | H9: FALSE | I9: 0 | K9: 1298.013 | L9: 7380.623042 | M9: 0 | N9: 19.62659561 | O9: 12836.38562 | P9: 12979.6445 | Q9: 2021_Q1 | R9: 1569.8 | S9: 457.4 | T9: 247.5 | U9: 1570 | V9: 2028 | W9: 280 | X9: 50.78 | Y9: 129.7 | Z9: 0 | AA9: 0 | AB9: 408.8832 | AC9: 462.6336 | AE9: 254.2347182 | AI9: 2024 | AJ9: 1569.8 | AK9: 1570 | AL9: 247.5 | AM9: 1570 | AN9: 2028 | AO9: 280 | AP9: 50.78 | AQ9: 129.7 | AR9: 144.6575342 | AS9: 173.8783562
B10: Plynovod Eastring | C10: Velke Zlievce | D10: nonFID | E10: 2025_Q2 | F10: SK/HU | G10: ENTRY | H10: FALSE | I10: 578.630137 | K10: 1066.01252 | L10: 1268.821751 | M10: 0 | N10: 20.45841002 | O10: 5874.883682 | P10: 23979.6445 | Q10: 2021_Q2 | R10: 1569.8 | S10: 457.4 | T10: 247.5 | U10: 1570 | V10: 2028 | W10: 280 | X10: 50.78 | Y10: 129.7 | Z10: 0 | AA10: 0 | AB10: 408.8832 | AC10: 462.6336 | AE10: 243.7042861 | AI10: 2025 | AJ10: 1569.8 | AK10: 1570 | AL10: 247.5 | AM10: 1570 | AN10: 2028 | AO10: 280 | AP10: 50.78 | AQ10: 129.7 | AR10: 144.6575342 | AS10: 173.8783562
B11: Plynovod Eastring | C11: Velke Zlievce | D11: nonFID | E11: 2030_Q2 | F11: SK/HU | G11: EXIT | H11: FALSE | I11: 578.630137 | K11: 1317.442 | L11: 740.1460214 | M11: 0 | N11: 21.63320958 | O11: 4838.139503 | P11: 40600 | Q11: 2021_Q3 | R11: 1569.8 | S11: 457.4 | T11: 247.5 | U11: 1570 | V11: 2028 | W11: 280 | X11: 50.78 | Y11: 129.7 | Z11: 0 | AA11: 0 | AB11: 408.8832 | AC11: 462.6336 | AE11: 248.2173285 | AI11: 2026 | AJ11: =R29 -> 1743.8 | AK11: 1570 | AL11: 247.5 | AM11: 1570 | AN11: 2028 | AO11: 280 | AP11: 50.78 | AQ11: 129.7 | AR11: 144.6575342 | AS11: 173.8783562
B12: Zvýšení technické kapacity přepravní sítě ve směru východ-západ | C12: V-Z | D12: nonFID | E12: 2025_Q2 | F12: SK/DOM | G12: EXIT | H12: FALSE | K12: 2286.514 | L12: 4712.256983 | M12: 0 | N12: 23.05845869 | O12: 10713.02319 | P12: 28567.52343 | Q12: 2021_Q4 | R12: 1569.8 | S12: 457.4 | T12: 247.5 | U12: 1570 | V12: 2028 | W12: 280 | X12: 50.78 | Y12: 129.7 | Z12: 144.6575342 | AA12: 173.8783562 | AB12: 408.8832 | AC12: 462.6336 | AE12: 284.3216672 | AI12: 2027 | AJ12: =R30 -> 1743.8 | AK12: 1570 | AL12: 247.5 | AM12: 1570 | AN12: 2028 | AO12: 280 | AP12: 50.78 | AQ12: 129.7 | AR12: 144.6575342 | AS12: 173.8783562
B13: Projekt HUSK - navýšení přepravní kapacity Velke Zlievce | D13: nonFID | E13: 2023_Q1 | F13: SK/HU | G13: ENTRY | H13: FALSE | I13: 154.704 | K13: 2023.543 | L13: 7243.433149 | M13: 0.02315093847 | N13: 26.35827622 | O13: 13034.80896 | P13: 15908.2804 | Q13: 2022_Q1 | R13: 1569.8 | S13: 457.4 | T13: 247.5 | U13: 1570 | V13: 2028 | W13: 280 | X13: 50.78 | Y13: 129.7 | Z13: 144.6575342 | AA13: 173.8783562 | AB13: 408.8832 | AC13: 462.6336 | AE13: 258.2112759 | AI13: 2028 | AJ13: 1743.8 | AK13: 1570 | AL13: 247.5 | AM13: 1570 | AN13: 2028 | AO13: 280 | AP13: 50.78 | AQ13: 129.7 | AR13: 144.6575342 | AS13: 173.8783562
B14: Projekt HUSK - navýšení přepravní kapacity Velke Zlievce | D14: nonFID | E14: 2023_Q2 | F14: SK/HU | G14: EXIT | H14: FALSE | I14: 154.704 | K14: 1287.564 | L14: 1286.29713 | M14: 0.02413212159 | N14: 27.47539273 | O14: 6093.305435 | P14: 26908.2804 | Q14: 2022_Q2 | R14: 1569.8 | S14: 457.4 | T14: 247.5 | U14: 1570 | V14: 2028 | W14: 280 | X14: 50.78 | Y14: 129.7 | Z14: 144.6575342 | AA14: 173.8783562 | AB14: 408.8832 | AC14: 462.6336 | AE14: 247.5161343 | AI14: 2029 | AJ14: 1743.8 | AK14: 1570 | AL14: 247.5 | AM14: 1570 | AN14: 2028 | AO14: 280 | AP14: 50.78 | AQ14: 129.7 | AR14: 144.6575342 | AS14: 173.8783562
B15: Capacity4Gas SK/CZ | C15: Lanžhot - navýšení propojení mezi CZ SK | D15: FID | E15: 2025_Q3 | F15: SK/CZ | G15: ENTRY | H15: TRUE | I15: 174 | K15: 1455.032 | L15: 750.3399926 | M15: 0.0255178796 | N15: 29.05313406 | O15: 5018.01624 | P15: 40600 | Q15: 2022_Q3 | R15: 1569.8 | S15: 457.4 | T15: 247.5 | U15: 1570 | V15: 2028 | W15: 280 | X15: 50.78 | Y15: 129.7 | Z15: 144.6575342 | AA15: 173.8783562 | AB15: 408.8832 | AC15: 462.6336 | AE15: 252.0997664 | AI15: 2030 | AJ15: 1743.8 | AK15: 1570 | AL15: 247.5 | AM15: 1570 | AN15: 2028 | AO15: 280 | AP15: 50.78 | AQ15: 129.7 | AR15: 144.6575342 | AS15: 173.8783562
B16: Capacity4Gas SK/CZ | C16: Lanžhot - navýšení propojení mezi CZ SK | D16: FID | E16: 2020_Q1 | F16: SK/CZ | G16: ENTRY | H16: TRUE | I16: =1570-697 -> 873 | K16: 1265.321 | L16: 5504.473357 | M16: 0.02719906034 | N16: 30.96722608 | O16: 11111.32167 | P16: 28882.64733 | Q16: 2022_Q4 | R16: 1569.8 | S16: 457.4 | T16: 247.5 | U16: 1570 | V16: 2028 | W16: 280 | X16: 50.78 | Y16: 129.7 | Z16: 144.6575342 | AA16: 173.8783562 | AB16: 408.8832 | AC16: 462.6336 | AE16: 288.7688234
B17: Navýšení kapacity směr UA | E17: 2020_Q1 | F17: SK/UA | G17: EXIT | H17: FALSE | I17: 31 | K17: 1171.154852 | L17: 7243.433149 | M17: 0.03472640771 | N17: 34.60109914 | O17: 12740.21026 | P17: 13181.84466 | Q17: 2023_Q1 | R17: 1569.8 | S17: 457.4 | T17: 247.5 | U17: 1570 | V17: 2028 | W17: 280 | X17: 50.78 | Y17: 129.7 | Z17: 144.6575342 | AA17: 173.8783562 | AB17: 408.8832 | AC17: 462.6336 | AE17: 262.1878336
K18: 1054.884627 | L18: 1303.772509 | M18: 0.03619818238 | N18: 36.06756298 | O18: 6085.767967 | P18: 24181.84466 | Q18: 2023_Q2 | R18: 1569.8 | S18: 457.4 | T18: 247.5 | U18: 1570 | V18: 2028 | W18: 280 | X18: 50.78 | Y18: 129.7 | Z18: 144.6575342 | AA18: 173.8783562 | AB18: 408.8832 | AC18: 462.6336 | AE18: 251.3279825
K19: 1847.67224 | L19: 760.5339638 | M19: 0.0382768194 | N19: 38.13869934 | O19: 5011.808914 | P19: 40600 | Q19: 2023_Q3 | R19: 1569.8 | S19: 457.4 | T19: 247.5 | U19: 1570 | V19: 2028 | W19: 280 | X19: 50.78 | Y19: 129.7 | Z19: 144.6575342 | AA19: 173.8783562 | AB19: 408.8832 | AC19: 462.6336 | AE19: 255.9822044
K20: 2226.152371 | L20: 5182.650354 | M20: 0.04079859051 | N20: 40.65137076 | O20: 11097.57688 | P20: 26302.33923 | Q20: 2023_Q4 | R20: 1569.8 | S20: 457.4 | T20: 247.5 | U20: 1570 | V20: 2028 | W20: 280 | X20: 50.78 | Y20: 129.7 | Z20: 144.6575342 | AA20: 173.8783562 | AB20: 408.8832 | AC20: 462.6336 | AE20: 293.2159796
K21: 1684.595 | L21: 5737.937165 | M21: 0.03472640771 | N21: 44.35506436 | O21: 11711.4748 | P21: 9375.85205 | Q21: 2024_Q1 | R21: 1569.8 | S21: 457.4 | T21: 247.5 | U21: 1570 | V21: 2028 | W21: 280 | X21: 50.78 | Y21: 129.7 | Z21: 144.6575342 | AA21: 173.8783562 | AB21: 408.8832 | AC21: 462.6336 | AE21: 266.1643912
K22: 1532.654 | L22: 1339.323984 | M22: 0.03619818238 | N22: 46.23492077 | O22: 5719.373269 | P22: 20375.85205 | Q22: 2024_Q2 | R22: 1569.8 | S22: 457.4 | T22: 247.5 | U22: 1570 | V22: 2028 | W22: 280 | X22: 50.78 | Y22: 129.7 | Z22: 144.6575342 | AA22: 173.8783562 | AB22: 408.8832 | AC22: 462.6336 | AE22: 255.1398307
K23: 1529.654 | L23: 781.272324 | M23: 0.0382768194 | N23: 48.88990541 | O23: 4710.072104 | P23: 40600 | Q23: 2024_Q3 | R23: 1569.8 | S23: 457.4 | T23: 247.5 | U23: 1570 | V23: 2028 | W23: 280 | X23: 50.78 | Y23: 129.7 | Z23: 144.6575342 | AA23: 173.8783562 | AB23: 408.8832 | AC23: 462.6336 | AE23: 259.8646423
K24: 1568.465 | L24: 5364.671804 | M24: 0.04079859051 | N24: 52.11089276 | O24: 10429.44537 | P24: 26665.77571 | Q24: 2024_Q4 | R24: 1569.8 | S24: 457.4 | T24: 247.5 | U24: 1570 | V24: 2028 | W24: 280 | X24: 50.78 | Y24: 129.7 | Z24: 144.6575342 | AA24: 173.8783562 | AB24: 408.8832 | AC24: 462.6336 | AE24: 297.6631358
G25: =151*10.56+168*10.56 -> 3368.64 | K25: 998.465 | L25: 6169.644572 | M25: 0.04630187694 | N25: 55.62017188 | O25: 11819.56888 | P25: 8034.417661 | Q25: 2025_Q1 | R25: 1569.8 | S25: 457.4 | T25: 247.5 | U25: 1570 | V25: 2028 | W25: 280 | X25: 50.78 | Y25: 129.7 | Z25: 144.6575342 | AA25: 173.8783562 | AB25: 408.8832 | AC25: 462.6336 | AE25: 270.1409489
K26: 1998.465 | L26: 1356.799363 | M26: 0.04826424317 | N26: 57.97746611 | O26: 5904.096826 | P26: 19034.41766 | Q26: 2025_Q2 | R26: 1569.8 | S26: 457.4 | T26: 247.5 | U26: 1570 | V26: 2028 | W26: 280 | X26: 50.78 | Y26: 129.7 | Z26: 144.6575342 | AA26: 173.8783562 | AB26: 408.8832 | AC26: 462.6336 | AE26: 258.9516788
G27: =76.15*1000 -> 76150 | H27: GWh | K27: 2195.462 | L27: 791.4662952 | M27: 0.0510357592 | N27: 61.30675226 | O27: 4862.197386 | P27: 40600 | Q27: 2025_Q3 | R27: 1743.8 | S27: 457.4 | T27: 247.5 | U27: 1570 | V27: 2028 | W27: 280 | X27: 50.78 | Y27: 129.7 | Z27: 144.6575342 | AA27: 173.8783562 | AB27: 408.8832 | AC27: 462.6336 | AE27: 263.7470803
G28: =G27/365 -> 208.630137 | H28: GWh/den | K28: 1456.231 | L28: 5203.094287 | M28: 0.05439812068 | N28: 65.34579206 | O28: 10766.29421 | P28: 26032.50236 | Q28: 2025_Q4 | R28: 1743.8 | S28: 457.4 | T28: 247.5 | U28: 1570 | V28: 2028 | W28: 280 | X28: 50.78 | Y28: 129.7 | Z28: 144.6575342 | AA28: 173.8783562 | AB28: 408.8832 | AC28: 462.6336 | AE28: 302.110292
K29: 1000.231 | L29: 5938.882351 | M29: 0.04630187694 | N29: 58.13695846 | O29: 11374.17341 | P29: 18482.54403 | Q29: 2026_Q1 | R29: 1743.8 | S29: 457.4 | T29: 247.5 | U29: 1570 | V29: 2028 | W29: 280 | X29: 50.78 | Y29: 129.7 | Z29: 144.6575342 | AA29: 173.8783562 | AB29: 408.8832 | AC29: 462.6336 | AE29: 274.1175066
K30: 2013.543 | L30: 1371.353077 | M30: 0.04826424317 | N30: 60.60091914 | O30: 5814.516657 | P30: 29482.54403 | Q30: 2026_Q2 | R30: 1743.8 | S30: 457.4 | T30: 247.5 | U30: 1570 | V30: 2028 | W30: 280 | X30: 50.78 | Y30: 129.7 | Z30: 144.6575342 | AA30: 173.8783562 | AB30: 408.8832 | AC30: 462.6336 | AE30: 262.763527
K31: 2213.546 | L31: 799.9559618 | M31: 0.0510357592 | N31: 64.08085392 | O31: 4788.425482 | P31: 40600 | Q31: 2026_Q3 | R31: 1743.8 | S31: 457.4 | T31: 247.5 | U31: 1570 | V31: 2028 | W31: 280 | X31: 50.78 | Y31: 129.7 | Z31: 144.6575342 | AA31: 173.8783562 | AB31: 408.8832 | AC31: 462.6336 | AE31: 267.6295182
K32: 1102.354 | L32: 5423.737566 | M32: 0.05439812068 | N32: 68.30265837 | O32: 10602.94214 | P32: 25324.38283 | Q32: 2026_Q4 | R32: 1743.8 | S32: 457.4 | T32: 247.5 | U32: 1570 | V32: 2028 | W32: 280 | X32: 50.78 | Y32: 129.7 | Z32: 144.6575342 | AA32: 173.8783562 | AB32: 408.8832 | AC32: 462.6336 | AE32: 306.5574482
K33: 1200.001 | L33: 6364.076649 | M33: 0.06945281541 | N33: 70.28124178 | O33: 11193.32848 | P33: 13057.28851 | Q33: 2027_Q1 | R33: 1743.8 | S33: 457.4 | T33: 247.5 | U33: 1570 | V33: 2028 | W33: 280 | X33: 50.78 | Y33: 129.7 | Z33: 144.6575342 | AA33: 173.8783562 | AB33: 408.8832 | AC33: 462.6336 | AE33: 278.0940642
K34: 2054.132 | L34: 1386.084276 | M34: 0.07239636476 | N34: 73.25990149 | O34: 5859.123631 | P34: 24057.28851 | Q34: 2027_Q2 | R34: 1743.8 | S34: 457.4 | T34: 247.5 | U34: 1570 | V34: 2028 | W34: 280 | X34: 50.78 | Y34: 129.7 | Z34: 144.6575342 | AA34: 173.8783562 | AB34: 408.8832 | AC34: 462.6336 | AE34: 266.5753752
K35: 2356.413 | L35: 808.549161 | M35: 0.0765536388 | N35: 77.46676309 | O35: 4825.160637 | P35: 40600 | Q35: 2027_Q3 | R35: 1743.8 | S35: 457.4 | T35: 247.5 | U35: 1570 | V35: 2028 | W35: 280 | X35: 50.78 | Y35: 129.7 | Z35: 144.6575342 | AA35: 173.8783562 | AB35: 408.8832 | AC35: 462.6336 | AE35: 271.5119562
K36: 1012.546 | L36: 4834.187604 | M36: 0.08159718103 | N36: 82.57046419 | O36: 10684.28427 | P36: 21282.39766 | Q36: 2027_Q4 | R36: 1743.8 | S36: 457.4 | T36: 247.5 | U36: 1570 | V36: 2028 | W36: 280 | X36: 50.78 | Y36: 129.7 | Z36: 144.6575342 | AA36: 173.8783562 | AB36: 408.8832 | AC36: 462.6336 | AE36: 311.0046044
K37: 1202.134 | L37: 5924.011359 | M37: 0.06945281541 | N37: 83.70999606 | O37: 10946.88941 | P37: 2420.812967 | Q37: 2028_Q1 | R37: 1743.8 | S37: 457.4 | T37: 247.5 | U37: 1570 | V37: 2028 | W37: 280 | X37: 50.78 | Y37: 129.7 | Z37: 144.6575342 | AA37: 173.8783562 | AB37: 408.8832 | AC37: 462.6336 | AE37: 282.0706219
K38: 2035.654 | L38: 1401.82577 | M38: 0.07239636476 | N38: 87.25779326 | O38: 5870.742211 | P38: 13420.81297 | Q38: 2028_Q2 | R38: 1743.8 | S38: 457.4 | T38: 247.5 | U38: 1570 | V38: 2028 | W38: 280 | X38: 50.78 | Y38: 129.7 | Z38: 144.6575342 | AA38: 173.8783562 | AB38: 408.8832 | AC38: 462.6336 | AE38: 270.3872234
A39: Sloupec1 | B39: Sloupec2 | C39: Sloupec3 | D39: Sloupec4 | E39: Sloupec5 | F39: Sloupec6 | G39: Sloupec7 | H39: Sloupec8 | I39: Sloupec9 | K39: 2365.412 | L39: 817.7316991 | M39: 0.0765536388 | N39: 92.26846693 | O39: 4834.72888 | P39: 40600 | Q39: 2028_Q3 | R39: 1743.8 | S39: 457.4 | T39: 247.5 | U39: 1570 | V39: 2028 | W39: 280 | X39: 50.78 | Y39: 129.7 | Z39: 144.6575342 | AA39: 173.8783562 | AB39: 408.8832 | AC39: 462.6336 | AE39: 275.3943942
K40: 1136.543 | L40: 5172.369359 | M40: 0.08159718103 | N40: 98.34734073 | O40: 10705.47109 | P40: 20197.33091 | Q40: 2028_Q4 | R40: 1743.8 | S40: 457.4 | T40: 247.5 | U40: 1570 | V40: 2028 | W40: 280 | X40: 50.78 | Y40: 129.7 | Z40: 144.6575342 | AA40: 173.8783562 | AB40: 408.8832 | AC40: 462.6336 | AE40: 315.4517606
K41: 1305.436 | L41: 6132.222006 | M41: 0.06945281541 | N41: 98.4232213 | O41: 10865.60325 | P41: -1748.548677 | Q41: 2029_Q1 | R41: 1743.8 | S41: 457.4 | T41: 247.5 | U41: 1570 | V41: 2028 | W41: 280 | X41: 50.78 | Y41: 129.7 | Z41: 144.6575342 | AA41: 173.8783562 | AB41: 408.8832 | AC41: 462.6336 | AE41: 286.0471796
K42: 1984.562 | L42: 1420.639108 | M42: 0.07239636476 | N42: 102.5945944 | O42: 5973.743938 | P42: 9251.451323 | Q42: 2029_Q2 | R42: 1743.8 | S42: 457.4 | T42: 247.5 | U42: 1570 | V42: 2028 | W42: 280 | X42: 50.78 | Y42: 129.7 | Z42: 144.6575342 | AA42: 173.8783562 | AB42: 408.8832 | AC42: 462.6336 | AE42: 274.1990715
K43: 2123.541 | L43: 828.7061462 | M43: 0.0765536388 | N43: 108.4859654 | O43: 4919.553831 | P43: 40600 | Q43: 2029_Q3 | R43: 1743.8 | S43: 457.4 | T43: 247.5 | U43: 1570 | V43: 2028 | W43: 280 | X43: 50.78 | Y43: 129.7 | Z43: 144.6575342 | AA43: 173.8783562 | AB43: 408.8832 | AC43: 462.6336 | AE43: 279.2768321
K44: 2000.214 | L44: 4612.236332 | M44: 0.08159718103 | N44: 115.633288 | O44: 10893.29777 | P44: 23868.78491 | Q44: 2029_Q4 | R44: 1743.8 | S44: 457.4 | T44: 247.5 | U44: 1570 | V44: 2028 | W44: 280 | X44: 50.78 | Y44: 129.7 | Z44: 144.6575342 | AA44: 173.8783562 | AB44: 408.8832 | AC44: 462.6336 | AE44: 319.8989168
K45: 2154.621 | L45: 5764.220443 | M45: 0.08102828465 | N45: 114.4209175 | O45: 10514.96454 | P45: 6229.351351 | Q45: 2030_Q1 | R45: 1743.8 | S45: 457.4 | T45: 247.5 | U45: 1570 | V45: 2028 | W45: 280 | X45: 50.78 | Y45: 129.7 | Z45: 144.6575342 | AA45: 173.8783562 | AB45: 408.8832 | AC45: 462.6336 | AE45: 290.0237372
K46: 2201.34 | L46: 1439.704932 | M46: 0.08446242555 | N46: 119.270305 | O46: 5930.154366 | P46: 17229.35135 | Q46: 2030_Q2 | R46: 1743.8 | S46: 457.4 | T46: 247.5 | U46: 1570 | V46: 2028 | W46: 280 | X46: 50.78 | Y46: 129.7 | Z46: 144.6575342 | AA46: 173.8783562 | AB46: 408.8832 | AC46: 462.6336 | AE46: 278.0109197
K47: 1023.541 | L47: 839.827877 | M47: 0.0893125786 | N47: 126.1192586 | O47: 4883.656537 | P47: 40600 | Q47: 2030_Q3 | R47: 1743.8 | S47: 457.4 | T47: 247.5 | U47: 1570 | V47: 2028 | W47: 280 | X47: 50.78 | Y47: 129.7 | Z47: 144.6575342 | AA47: 173.8783562 | AB47: 408.8832 | AC47: 462.6336 | AE47: 283.1592701
K48: 1987.465 | L48: 4847.925263 | M48: 0.0951967112 | N48: 134.4283059 | O48: 10813.8109 | P48: 25372.56509 | Q48: 2030_Q4 | R48: 1743.8 | S48: 457.4 | T48: 247.5 | U48: 1570 | V48: 2028 | W48: 280 | X48: 50.78 | Y48: 129.7 | Z48: 144.6575342 | AA48: 173.8783562 | AB48: 408.8832 | AC48: 462.6336 | AE48: 324.346073
J52: 2020 | K52: =SUM(K5:K8) -> 5843.440898 | L52: =SUM(L5:L8) -> 12597.81721 | M52: =SUM(M5:M8) -> 0 | N52: =SUM(N5:N8) -> 62.22666667 | O52: =SUM(O5:O8) -> 31729.20954 | P52: =0.02*SUM(K52:O52) -> 1004.653886 | Q52: =SUM(K52:P52) -> 51237.3482
J53: 2021 | K53: =SUM(K9:K12) -> 5967.98152 | L53: =SUM(L9:L12) -> 14101.8478 | M53: 0 | N53: 84.77667391 | O53: 34262.43199 | P53: =0.02*SUM(K53:O53) -> 1088.34076 | Q53: =SUM(K53:P53) -> 55505.37875
J54: 2022 | K54: =SUM(K13:K16) -> 6031.46 | L54: =SUM(L13:L16)*0.95 -> 14045.31645 | M54: =SUM(M13:M16) -> 0.1 | N54: 113.8540291 | O54: 35257.45231 | P54: 1108.963656 | Q54: 56557.14645
J55: 2023 | K55: =SUM(K17:K20) -> 6299.86409 | L55: =SUM(L17:L20)*0.98 -> 14200.58218 | M55: =SUM(M17:M20) -> 0.15 | N55: 149.4587322 | O55: 34935.36402 | P55: 1111.70838 | Q55: 56697.1274
J56: 2024 | K56: =SUM(K21:K24) -> 6315.368 | L56: =SUM(L21:L24) -> 13223.20528 | M56: 0.15 | N56: 191.5907833 | O56: 32570.36554 | P56: 1046.013592 | Q56: 53346.69319
J57: 2025 | K57: =SUM(K25:K28) -> 6648.623 | L57: =SUM(L25:L28) -> 13521.00452 | M57: 0.2 | N57: 240.2501823 | O57: 33352.1573 | P57: 1075.2447 | Q57: 54837.4797
J58: 2026 | K58: =SUM(K29:K32) -> 6329.674 | L58: =SUM(L29:L32) -> 13533.92896 | M58: 0.2 | N58: 251.1213899 | O58: 32580.05769 | P58: 1053.899641 | Q58: 53748.88168
J59: 2027 | K59: =SUM(K33:K36) -> 6623.092 | L59: =SUM(L33:L36) -> 13392.89769 | M59: 0.3 | N59: 303.5783705 | O59: 32561.89702 | P59: 1057.635302 | Q59: 53939.40038
J60: 2028 | K60: =SUM(K37:K40) -> 6739.743 | L60: =SUM(L37:L40) -> 13315.93819 | M60: 0.3 | N60: 361.583597 | O60: 32357.83159 | P60: 1055.507928 | Q60: 53830.90431
J61: 2029 | K61: =SUM(K41:K44) -> 7413.753 | L61: =SUM(L41:L44) -> 12993.80359 | M61: 0.3 | N61: 425.1370691 | O61: 32652.19879 | P61: 1069.703849 | Q61: 54554.8963
J62: 2030 | K62: =SUM(K45:K48) -> 7366.967 | L62: =SUM(L45:L48) -> 12891.67851 | M62: =SUM(M45:M48) -> 0.35 | N62: 494.2387871 | O62: 32142.58635 | P62: 1057.916413 | Q62: 53953.73706
C86: https://ec.europa.eu/energy/sites/ener/files/quarterly_report_on_european_gas_markets_q4_2019_final.pdf

Sheet Data
A1: Doprava | G1: Rok | H1: Celková spotřeba GWh | I1: Výroba | P1: ztraty a ostatní | V1: ZÁS
A2: ČR | B2: CNG | C2: LNG | G2: 2019 | H2: 91397 | I2: =-62.964*G2+128538 -> 1413.684 | J2: DOMÁCNOSTI | M2: PODNIKY | R2: PODNIKY V RÁMCI JEDNOHO ROKU | W2: GWh/r
A3: 2020 | B3: 1005.2 | C3: 295.68 | D3: Q1 | E3: 0.2315093847 | G3: 2020 | H3: 91600 | I3: =-62.964*G3+128538 -> 1350.72 | J3: Q1 | K3: 0.125 | M3: Q1 | N3: 0.22 | P3: =0.016*H3 -> 1465.6 | R3: 0.3863820468 | V3: 2020 | W3: 35610
A4: 2021 | B4: 1114.36 | C4: 311.9424 | D4: Q2 | E4: 0.2413212159 | G4: 2021 | H4: 92936 | I4: 1287.756 | J4: Q2 | K4: 0.024 | M4: Q2 | N4: 0.12 | P4: =0.016*H4 -> 1486.976 | R4: 0.1664373377 | V4: 2021 | W4: 37074
A5: 2022 | B5: 1223.52 | C5: 327.53952 | D5: Q3 | E5: 0.255178796 | G5: 2022 | H5: 94216 | I5: 1224.792 | J5: Q3 | K5: 0.014 | M5: Q3 | N5: 0.09 | P5: 1507.456 | R5: 0.142721974 | V5: 2022 | W5: 37127
A6: 2023 | B6: 1332.68 | C6: 343.916496 | D6: Q4 | E6: 0.2719906034 | G6: 2023 | H6: 95496 | I6: 1161.828 | J6: Q4 | K6: 0.1 | M6: Q4 | N6: 0.19 | P6: 1527.936 | R6: 0.3044586415 | V6: 2023 | W6: 43132
A7: 2024 | B7: 1441.84 | C7: 361.1123208 | G7: 2024 | H7: 98100 | I7: 1098.864 | P7: 1569.6 | V7: 2024 | W7: 43132
A8: 2025 | B8: 1551 | C8: 379.1679368 | G8: 2025 | H8: 99380 | I8: 1035.9 | J8: VEL | M8: TĚŽBA | P8: 1590.08 | V8: 2025 | W8: 43132
A9: 2026 | B9: 1826.176 | C9: 436.0431274 | G9: 2026 | H9: 100446 | I9: 972.936 | J9: Q1 | K9: 0.13 | M9: Q1 | N9: ='Historie toky'!E83 -> 0.2467153285 | P9: 1607.136 | V9: 2026 | W9: 43132
A10: 2027 | B10: 1946.252 | C10: 479.6474401 | G10: 2027 | H10: 101525 | I10: 909.972 | J10: Q2 | K10: 0.024 | M10: Q2 | N10: ='Historie toky'!E84 -> 0.2364963504 | P10: 1624.4 | V10: 2027 | W10: 43132
A11: 2028 | B11: 2066.328 | C11: 527.6121841 | G11: 2028 | H11: 102678 | I11: 847.008 | J11: Q3 | K11: 0.014 | M11: Q3 | N11: ='Historie toky'!E85 -> 0.2408759124 | P11: 1642.848 | V11: 2028 | W11: 43132
A12: 2029 | B12: 2186.404 | C12: 580.3734025 | G12: 2029 | H12: 104056 | I12: 784.044 | J12: Q4 | K12: 0.1 | M12: Q4 | N12: ='Historie toky'!E86 -> 0.2759124088 | P12: 1664.896 | V12: 2029 | W12: 43132
A13: 2030 | B13: 2306.48 | C13: 638.4107428 | G13: 2030 | H13: =H12/H11*H12 -> 105452.4936 | I13: 721.08 | P13: 1687.239897 | V13: 2030 | W13: 43132
H29: GWh
A30: SK | B30: CNG GWh | C30: LNG | H30: Celková spotřeba
A31: 2020 | B31: =62226.6666666656/1000 -> 62.22666667 | C31: 0 | G31: 2020 | H31: 49275
A32: 2021 | B32: =84776.6739076121/1000 -> 84.77667391 | C32: 0 | G32: 2021 | H32: 49275
A33: 2022 | B33: =113854.029094195/1000 -> 113.8540291 | C33: =100/1000 -> 0.1 | G33: 2022 | H33: 49275
A34: 2023 | B34: =149458.732226413/1000 -> 149.4587322 | C34: 0.15 | G34: 2023 | H34: 49275
A35: 2024 | B35: =191590.783297938/1000 -> 191.5907833 | C35: 0.15 | G35: 2024 | H35: 49275
A36: 2025 | B36: =240250.182313517/1000 -> 240.2501823 | C36: 0.2 | G36: 2025 | H36: 49275
A37: 2026 | B37: =251121.389883521/1000 -> 251.1213899 | C37: 0.2 | G37: 2026 | H37: 49275
A38: 2027 | B38: =303578.370548964/1000 -> 303.5783705 | C38: 0.3 | G38: 2027 | H38: 49275
A39: 2028 | B39: =361583.596966852/1000 -> 361.583597 | C39: 0.3 | G39: 2028 | H39: 49640
A40: 2029 | B40: =425137.06913853/1000 -> 425.1370691 | C40: 0.3 | G40: 2029 | H40: 49640
A41: 2030 | B41: =494238.787059964/1000 -> 494.2387871 | C41: 0.35 | G41: 2030 | H41: 49640
A45: AT

Sheet Elektrina
O2: CZ ZAS
J3: VEL | O3: ZAS | P3: saldo | Y3: https://www.statista.com/statistics/252791/natural-gas-prices/?fbclid=IwAR0FcitRptocpP0LdbLnq5FIyMC2iVvrV1YK2r44iszRUHpACXElFUMYPHk
A4: CZ | B4: Cena | C4: elektřina | E4: diskont plyn | F4: diskont el | G4: TEPLOTA | H4: kvartal | O4: 34962 | U4: cca 8 mld m3 Rusko | Y4: Cena | Z4: EUR/MWh
A5: 2020_Q1 | B5: 13.3 | C5: 36 | D5: 17 | E5: =B5/(1+0.02/4)^(D5-17) -> 13.3 | F5: =C5/(1+0.02/4)^(D5-17) -> 36 | G5: 2.2 | H5: 1 | J5: =$N$21+$N$22*G5+$N$23*E5*F5+$N$24*H5*G5+$N$25*F5*F5+E5*E5*$N$26 -> 2402075.62 | O5: 23511.71043 | P5: =O5-O4 -> -11450.28957 | X5: 2019 | Y5: 4.5 | Z5: =Y5*$T$12*0.89 -> 0 | AC5: =2.3393*(X5-2016)+20.532 -> 27.5499
A6: 2020_Q2 | B6: 7.1 | C6: 45 | D6: =D5+1 -> 18 | E6: =B6/(1+0.02/4)^(D6-17) -> 7.064676617 | F6: =C6/(1+0.02/4)^(D6-17) -> 44.7761194 | G6: 11.5 | H6: 2 | J6: =$N$21+$N$22*G6+$N$23*E6*F6+$N$24*H6*G6+$N$25*F6*F6+E6*E6*$N$26 -> 1544990.904 | O6: 35511.71043 | P6: =O6-O5 -> 12000 | X6: 2020 | Y6: 4.5 | Z6: 0 | AC6: =2.3393*(X6-2016)+20.532 -> 29.8892
A7: 2020_Q3 | B7: 6.6 | C7: 51 | D7: =D6+1 -> 19 | E7: 6.534491721 | F7: 50.49379966 | G7: 17.9 | H7: 3 | J7: =$N$21+$N$22*G7+$N$23*E7*F7+$N$24*H7*G7+$N$25*F7*F7+E7*E7*$N$26 -> 3215240.76 | O7: 35000 | P7: -511.7104344 | X7: 2021 | Y7: 4.7 | Z7: 0 | AC7: 32.2285
A8: 2020_Q4 | B8: 10.7 | C8: 61 | D8: 20 | E8: 10.54109172 | F8: 60.09407432 | G8: 5 | H8: 4 | J8: 2868760.892 | K8: =SUM(J5:J8) -> 10031068.18 | O8: 27264.66545 | P8: -7735.334549 | X8: 2022 | Y8: 4.9 | Z8: 0 | AC8: 34.5678
A9: 2021_Q1 | B9: 12.9 | C9: 62.8 | D9: 21 | E9: 12.64519303 | F9: 61.55954436 | G9: -1.6 | H9: 1 | J9: 2262244.859 | O9: 4281.932767 | P9: -22982.73268 | X9: 2023 | Z9: 0 | AC9: 36.9071
A10: 2021_Q2 | B10: 11.96 | C10: 58.9 | D10: 22 | E10: 11.66543319 | F10: 57.44933237 | G10: 11.09082375 | H10: 2 | J10: 1256028.856 | O10: 16753.84288 | P10: 12471.91011 | X10: 2024 | Z10: 0 | AC10: 39.2464
A11: 2021_Q3 | B11: 12.8 | C11: =1.8053*D11+25 -> 66.5219 | D11: 23 | E11: 12.4226314 | F11: 64.56070653 | G11: 14.9 | H11: 3 | J11: 2274617.521 | O11: 36376.40449 | P11: 19622.56161 | X11: 2025 | Y11: 5.6 | Z11: 0 | AB11: =(Z11-Z8)/3 -> 0 | AC11: 41.5857
A12: 2021_Q4 | B12: 10.6 | C12: 68.3272 | D12: 24 | E12: 10.23631008 | F12: 65.98286847 | G12: 5.5 | H12: 4 | J12: 3870901.265 | K12: =SUM(J9:J12) -> 9663792.501 | O12: 32041.64342 | P12: -4334.761077 | U12: 1BTU | V12: =1000000*2.9307107*0.0000001 -> 0.29307107 | W12: MWh | X12: 2026 | Z12: 0 | AC12: 43.925
A13: 2022_Q1 | B13: 10.4 | C13: 70.1325 | D13: 25 | E13: 9.99320612 | F13: 67.38928156 | G13: -1.3 | H13: 1 | J13: 4135458.828 | O13: 10225.14249 | P13: -21816.50093 | T13: =1/0.29307 -> 3.412154093 | U13: BTU | V13: =V12*3.4125 -> 1.000105026 | W13: MWh | X13: 2027 | Z13: 0 | AC13: 46.2643
A14: 2022_Q2 | B14: 11 | C14: 63.69 | D14: 26 | E14: 10.51715148 | F14: 60.89430709 | G14: 11.08262371 | H14: 2 | J14: 1970314.675 | O14: 22697.0526 | P14: 12471.91011 | X14: 2028 | Z14: 0 | AC14: 48.6036
A15: 2022_Q3 | B15: 13 | C15: 72 | D15: 27 | E15: 12.36752323 | F15: 68.49705173 | G15: 15.82074713 | H15: 3 | J15: 2721379.355 | O15: 36376.40449 | P15: 13679.35189 | X15: 2029 | Z15: 0 | AC15: 50.9429
A16: 2022_Q4 | B16: 15 | C16: 73 | D16: 28 | E16: 14.199223 | F16: 69.10288524 | G16: 3.5 | H16: 4 | J16: 2438906.434 | K16: =SUM(J13:J16) -> 11266059.29 | O16: 20278.59949 | P16: -16097.80501 | X16: 2030 | Y16: 7 | Z16: 0 | AB16: =(Z16-Z11)/5 -> 0 | AC16: 53.2822
A17: 2023_Q1 | B17: 15.9 | C17: 71.5 | D17: 29 | E17: 14.9762949 | F17: 67.34623179 | G17: -1.3 | H17: 1 | J17: 2157319.677 | O17: 1659.995168 | P17: -18618.60432
A18: 2023_Q2 | B18: 13.4 | C18: 63.9 | D18: 30 | E18: 12.55873786 | F18: 59.88830966 | G18: 13 | H18: 2 | J18: 1102194.671 | O18: 16154.37719 | P18: 14494.38202
A19: 2023_Q3 | B19: 13 | C19: 72.5 | D19: 31 | E19: 12.12323399 | F19: 67.61034343 | G19: 15.25863584 | H19: 3 | J19: 2723054.453 | O19: 42275.2809 | P19: 26120.90371
A20: 2023_Q4 | B20: 13.9 | C20: 76 | D20: 32 | E20: 12.89804459 | F20: 70.52168263 | G20: 4.3 | H20: 4 | J20: 3072433.152 | K20: =SUM(J17:J20) -> 9055001.953 | O20: 23928.09169 | P20: -18347.1892
A21: 2024_Q1 | B21: 15.5 | C21: 77.5 | D21: 33 | E21: 14.31115581 | F21: 71.55577905 | G21: 2.13653165 | H21: 1 | J21: 2161362.827 | L21: VEL | M21: konst | N21: 1316500 | O21: 9790.73272 | P21: -14137.35897
A22: 2024_Q2 | B22: 15 | C22: 80 | D22: 34 | E22: 13.78060261 | F22: 73.49654725 | G22: 13.39199175 | H22: 2 | J22: 1937153.479 | M22: teplota | N22: -186392 | O22: 24285.11474 | P22: 14494.38202
A23: 2024_Q3 | B23: 14 | C23: 75 | D23: 35 | E23: 12.79790624 | F23: 68.56021199 | G23: 16.72993328 | H23: 3 | J23: 2543993.656 | M23: cenaZPcenael | N23: -26019.7 | O23: 42275.2809 | P23: 17990.16616
A24: 2024_Q4 | B24: 16 | C24: 79 | D24: 36 | E24: 14.5534115 | F24: 71.85746928 | G24: 3.845516819 | H24: 4 | J24: 2591987.61 | K24: =SUM(J21:J24) -> 9234497.572 | M24: kvartalteplota | N24: 59939.6 | O24: 23575.9911 | P24: -18699.2898
A25: 2025_Q1 | B25: 17.5 | C25: 78 | D25: 37 | E25: 15.83860082 | F25: 70.59490653 | G25: 1.122253777 | H25: 1 | J25: 1900641.482 | M25: cenaelektriny2 | N25: 3248.03 | O25: 3996.103348 | P25: -19579.88775
A26: 2025_Q2 | B26: 13.5 | C26: 85 | D26: 38 | E26: 12.1575614 | F26: 76.54760882 | G26: 13.5 | H26: 2 | J26: 3267845.11 | M26: cenazp2 | N26: 54342 | O26: 18490.48537 | P26: 14494.38202
A27: 2025_Q3 | B27: 13 | C27: 84 | D27: 39 | E27: 11.64903617 | F27: 75.27069524 | G27: 15.06890385 | H27: 3 | J27: 4179070.64 | O27: 42275.2809 | P27: 23784.79553
A28: 2025_Q4 | B28: 16 | C28: 80 | D28: 40 | E28: 14.26594556 | F28: 71.32972778 | G28: 4.248688628 | H28: 4 | J28: 2651235.747 | K28: =SUM(J25:J28) -> 11998792.98 | O28: 26677.87957 | P28: -15597.40133
A29: 2026_Q1 | B29: 17.25 | C29: 80 | D29: 41 | E29: 15.30395279 | F29: 70.97485351 | G29: 1.661324778 | H29: 1 | J29: 1933148.245 | O29: 9834.99185 | P29: -16842.88772
A30: 2026_Q2 | B30: 16 | C30: 94 | D30: 42 | E30: 14.12434896 | F30: 82.98055013 | G30: 11.87960877 | H30: 2 | J30: 3236333.947 | O30: 24329.37387 | P30: 14494.38202
A31: 2026_Q3 | B31: 15 | C31: 98 | D31: 43 | E31: 13.17569865 | F31: 86.08123121 | G31: 15.1710282 | H31: 3 | J31: 5207295.822 | O31: 42275.2809 | P31: 17945.90703
A32: 2026_Q4 | B32: 18 | C32: 83 | D32: 44 | E32: 15.7321775 | F32: 72.54281846 | G32: 3.699166503 | H32: 4 | J32: 2361110.714 | K32: =SUM(J29:J32) -> 12737888.73 | O32: 23960.63233 | P32: -18314.64857
A33: 2027_Q1 | B33: 18.25 | C33: 84 | D33: 45 | E33: 15.87132335 | F33: 73.05157047 | G33: 0.6733786521 | H33: 1 | J33: 2085362.632 | O33: 2375.930966 | P33: -21584.70136
A34: 2027_Q2 | B34: 16 | C34: 96 | D34: 46 | E34: 13.84535806 | F34: 83.07214837 | G34: 14.44702601 | H34: 2 | J34: 3260303.115 | O34: 16870.31299 | P34: 14494.38202
A35: 2027_Q3 | B35: 15.5 | C35: 99 | D35: 47 | E35: 13.34596082 | F35: 85.24194329 | G35: 15.88070855 | H35: 3 | J35: 4891081.914 | O35: 42275.2809 | P35: 25404.96791
A36: 2027_Q4 | B36: 18 | C36: 84 | D36: 48 | E36: 15.421428 | F36: 71.96666401 | G36: 5.185293369 | H36: 4 | J36: 2461647.679 | K36: =SUM(J33:J36) -> 12698395.34 | O36: 34567.5368 | P36: -7707.744102
A37: 2028_Q1 | B37: 18 | C37: 86 | D37: 49 | E37: 15.34470448 | F37: 73.31358807 | G37: 1.696305302 | H37: 1 | J37: 2083620.708 | O37: 17914.51812 | P37: -16653.01867
A38: 2028_Q2 | B38: 16 | C38: 95 | D38: 50 | E38: 13.57187793 | F38: 80.58302519 | G38: 13.52403838 | H38: 2 | J38: 3061253.064 | O38: 32408.90014 | P38: 14494.38202
A39: 2028_Q3 | B39: 14.5 | C39: 94 | D39: 51 | E39: 12.23832276 | F39: 79.33809236 | G39: 16.49272083 | H39: 3 | J39: 4527855.963 | O39: 42275.2809 | P39: 9866.380754
A40: 2028_Q4 | B40: 18.75 | C40: 90 | D40: 52 | E40: 15.74668394 | F40: 75.58408291 | G40: 4.325829555 | H40: 4 | J40: 2609123.038 | K40: =SUM(J37:J40) -> 12281852.77 | O40: 27291.80557 | P40: -14983.47533
A41: 2029_Q1 | B41: 17.95 | C41: 90 | D41: 53 | E41: 14.99982629 | F41: 75.20804269 | G41: 1.209202367 | H41: 1 | J41: 2408908.238 | O41: 8129.225346 | P41: -19162.58022
A42: 2029_Q2 | B42: 17 | C42: 98 | D42: 54 | E42: 14.13528718 | F42: 81.48577318 | G42: 12 | H42: 2 | J42: 2972782.682 | O42: 22623.60737 | P42: 14494.38202
A43: 2029_Q3 | B43: 15.5 | C43: 95 | D43: 55 | E43: 12.82393628 | F43: 78.59831914 | G43: 17.59871221 | H43: 3 | J43: 3976592.676 | O43: 42275.2809 | P43: 19651.67353
A44: 2029_Q4 | B44: 17.6 | C44: 94 | D44: 56 | E44: 14.48892817 | F44: 77.38404817 | G44: 5.76014105 | H44: 4 | J44: 3308412.71 | K44: =SUM(J41:J44) -> 12666696.31 | O44: 38275.2809 | P44: -4000
A45: 2030_Q1 | B45: 17.5 | C45: 93 | D45: 57 | E45: 14.33493006 | F45: 76.17991404 | G45: 2.074061885 | H45: 1 | J45: 2656139.202 | O45: 23766.78011 | P45: -14508.50079
A46: 2030_Q2 | B46: 18 | C46: 100 | D46: 58 | E46: 14.67114377 | F46: 81.5063543 | G46: 11.5 | H46: 2 | J46: 2711765.495 | O46: 36238.69023 | P46: 12471.91011
A47: 2030_Q3 | B47: 21 | C47: 99 | D47: 59 | E47: 17.03117851 | F47: 80.28984155 | G47: 16.5689006 | H47: 3 | J47: 2328242.918 | O47: 36376.40449 | P47: 137.7142693
A48: 2030_Q4 | B48: 21.89 | C48: 105 | D48: 60 | E48: 17.66465281 | F48: 84.73223139 | G48: 5.15 | H48: 4 | J48: 2922221.597 | K48: =SUM(J45:J48) -> 10618369.21 | O48: 28354.33961 | P48: -8022.064885
A50: Slovensko | E50: diskont plyn | F50: diskont el | J50: VEL | O50: SK ZAS
A51: 2020_Q1 | B51: 15.85 | C51: 38.9 | D51: 17 | E51: =B51/(1+0.02/4)^(D5-17) -> 15.85 | F51: =C51/(1+0.02/4)^(D51-17) -> 38.9 | G51: 4.5 | H51: 1 | J51: 980000
A52: 2020_Q2 | B52: =B6+2.25 -> 9.35 | C52: =C6+2 -> 47 | D52: =D51+1 -> 18 | E52: =B52/(1+0.02/4)^(D6-17) -> 9.303482587 | F52: =C52/(1+0.02/4)^(D52-17) -> 46.76616915 | G52: 15.5 | H52: 2 | J52: =998478-37602.3*G52-11805.8*E52*F52+2021.68*F52*F52+15694.7*E52*E52+5962.03*G52*H52 -> 1243916.898
A53: 2020_Q3 | B53: 8.85 | C53: 53 | D53: =D52+1 -> 19 | E53: 8.762159352 | F53: 52.47394866 | G53: 21.38549433 | H53: 3 | J53: 1820447
A54: 2020_Q4 | B54: 12.95 | C54: 63 | D54: 20 | E54: 12.75767643 | F54: 62.06437184 | G54: 6.8 | H54: 4 | J54: 1799077 | K54: =SUM(J51:J54) -> 5843440.898
A55: 2021_Q1 | B55: 15.15 | C55: 64.8 | D55: 21 | E55: 14.85074995 | F55: 63.52003941 | G55: 3.1 | H55: 1 | J55: 1298013
A56: 2021_Q2 | B56: 14.21 | C56: 60.9 | D56: 22 | E56: 13.8600172 | F56: 59.4000737 | G56: 14.06251882 | H56: 2 | J56: 1066012.52
A57: 2021_Q3 | B57: 15.05 | C57: 68.5219 | D57: 23 | E57: 14.60629707 | F57: 66.50174269 | G57: 20.42748486 | H57: 3 | J57: 1317442
A58: 2021_Q4 | B58: 12.85 | C58: 70.3272 | D58: 24 | E58: 12.40911174 | F58: 67.91424773 | G58: 7.535086193 | H58: 4 | J58: 2286514 | K58: =SUM(J55:J58) -> 5967981.52
A59: 2022_Q1 | B59: 12.65 | C59: 72.1325 | D59: 25 | E59: 12.15519783 | F59: 69.31105196 | G59: 3.4 | H59: 1 | J59: 2023543
A60: 2022_Q2 | B60: 13.25 | C60: 65.69 | D60: 26 | E60: 12.66838702 | F60: 62.80651646 | G60: 16 | H60: 2 | J60: 1287564
A61: 2022_Q3 | B61: 15.25 | C61: 74 | D61: 27 | E61: 14.5080561 | F61: 70.39974761 | G61: 18.4 | H61: 3 | J61: 1455032
A62: 2022_Q4 | B62: 17.25 | C62: =C16+1.5 -> 74.5 | D62: 28 | E62: 16.32910644 | F62: 70.52280754 | G62: 6.1 | H62: 4 | J62: 1265321 | K62: =SUM(J59:J62) -> 6031460
A63: 2023_Q1 | B63: 18.15 | C63: =C17+1.5 -> 73 | D63: 29 | E63: 17.09558191 | F63: 68.7590898 | G63: 3 | H63: 1 | J63: 1171154.852
A64: 2023_Q2 | B64: 15.65 | C64: 65.9 | D64: 30 | E64: 14.66748116 | F64: 61.76274814 | G64: 13.12891266 | H64: 2 | J64: 1054884.627
A65: 2023_Q3 | B65: 15.25 | C65: 74.5 | D65: 31 | E65: 14.22148603 | F65: 69.47545636 | G65: 21.23839303 | H65: 3 | J65: 1847672.24
A66: 2023_Q4 | B66: 16.15 | C66: 78 | D66: 32 | E66: 14.98585756 | F66: 72.37751639 | G66: 6 | H66: 4 | J66: 2226152.371 | K66: =SUM(J63:J66) -> 6299864.09
A67: 2024_Q1 | B67: 17.75 | C67: 79.5 | D67: 33 | E67: 16.38858165 | F67: 73.4023798 | G67: 3.637321605 | H67: 1 | J67: 1684595
A68: 2024_Q2 | B68: 17.25 | C68: 82 | D68: 34 | E68: 15.847693 | F68: 75.33396094 | G68: 18.9523143 | H68: 2 | J68: 1532654
A69: 2024_Q3 | B69: 16.25 | C69: 77 | D69: 35 | E69: 14.8547126 | F69: 70.38848431 | G69: 20.53621257 | H69: 3 | J69: 1529654
A70: 2024_Q4 | B70: 18.25 | C70: 81 | D70: 36 | E70: 16.59998499 | F70: 73.67664572 | G70: 5.8 | H70: 4 | J70: 1568465 | K70: =SUM(J67:J70) -> 6315368
A71: 2025_Q1 | B71: 19.75 | C71: =C25+1.6 -> 79.6 | D71: 37 | E71: 17.87499236 | F71: 72.04300718 | G71: 3.1 | H71: 1 | J71: 998465
A72: 2025_Q2 | B72: 15.75 | C72: =C26+1.6 -> 86.6 | D72: 38 | E72: 14.18382163 | F72: 77.98850498 | G72: 18.6 | H72: 2 | J72: 1998465
A73: 2025_Q3 | B73: 15.25 | C73: =C27+1.7 -> 85.7 | D73: 39 | E73: 13.6652155 | F73: 76.79403074 | G73: 20.4 | H73: 3 | J73: 2195462
A74: 2025_Q4 | B74: 18.25 | C74: =C28+1.5 -> 81.5 | D74: 40 | E74: 16.27209415 | F74: 72.66716017 | G74: 5.9 | H74: 4 | J74: 1456231 | K74: =SUM(J71:J74) -> 6648623
A75: 2026_Q1 | B75: 19.5 | C75: =C29+1.5 -> 81.5 | D75: 41 | E75: 17.30012054 | F75: 72.30563201 | G75: 5.028508943 | H75: 1 | J75: 1000231
A76: 2026_Q2 | B76: 18.25 | C76: =C30+1.5 -> 95.5 | D76: 42 | E76: 16.11058553 | F76: 84.30470784 | G76: 13.86 | H76: 2 | J76: 2013543
A77: 2026_Q3 | B77: 17.25 | C77: =C31+1.5 -> 99.5 | D77: 43 | E77: 15.15205345 | F77: 87.39880107 | G77: 19.6 | H77: 3 | J77: 2213546
A78: 2026_Q4 | B78: 20.25 | C78: =C32+1.5 -> 84.5 | D78: 44 | E78: 17.69869968 | F78: 73.85383325 | G78: 5.4 | H78: 4 | J78: 1102354 | K78: =SUM(J75:J78) -> 6329674 | L78: =(K78-9000000)/4 -> -667581.5
A79: 2027_Q1 | B79: 20.5 | C79: 86 | D79: 45 | E79: 17.82806184 | F79: 74.79089358 | G79: 3.959263939 | H79: 1 | J79: 1200001
A80: 2027_Q2 | B80: 18.25 | C80: 98 | D80: 46 | E80: 15.79236154 | F80: 84.80281812 | G80: 18.33822035 | H80: 2 | J80: 2054132
A81: 2027_Q3 | B81: 17.75 | C81: 101 | D81: 47 | E81: 15.28327771 | F81: 86.96400275 | G81: 20.2 | H81: 3 | J81: 2356413
A82: 2027_Q4 | B82: 20.25 | C82: 86 | D82: 48 | E82: 17.3491065 | F82: 73.68015601 | G82: 5.259700968 | H82: 4 | J82: 1012546 | K82: =SUM(J79:J82) -> 6623092 | L82: =(K82-9000000)/4 -> -594227
A83: 2028_Q1 | B83: 20.25 | C83: 88 | D83: 49 | E83: 17.26279254 | F83: 75.01855524 | G83: 3.2 | H83: 1 | J83: 1202134
A84: 2028_Q2 | B84: 18.25 | C84: 97 | D84: 50 | E84: 15.48042326 | F84: 82.27950993 | G84: 16.34939112 | H84: 2 | J84: 2035654
A85: 2028_Q3 | B85: 16.75 | C85: 96 | D85: 51 | E85: 14.13737284 | F85: 81.02613688 | G85: 20.1 | H85: 3 | J85: 2365412
A86: 2028_Q4 | B86: 21 | C86: 92 | D86: 52 | E86: 17.63628601 | F86: 77.26372919 | G86: 4.5 | H86: 4 | J86: 1136543 | K86: =SUM(J83:J86) -> 6739743 | L86: =(K86-9000000)/4 -> -565064.25
A87: 2029_Q1 | B87: 20.2 | C87: =C41+1.5 -> 91.5 | D87: 53 | E87: 16.88002736 | F87: 76.46151007 | G87: 2.6 | H87: 1 | J87: 1305436
A88: 2029_Q2 | B88: 19.25 | C88: =C42+1.5 -> 99.5 | D88: 54 | E88: 16.00613402 | F88: 82.7330044 | G88: 15 | H88: 2 | J88: 1984562
A89: 2029_Q3 | B89: 17.75 | C89: =C43+1.5 -> 96.5 | D89: 55 | E89: 14.68547542 | F89: 79.83934523 | G89: 20.2 | H89: 3 | J89: 2123541
A90: 2029_Q4 | B90: 19.65 | C90: 95 | D90: 56 | E90: 16.17655901 | F90: 78.20728272 | G90: 6.4 | H90: 4 | J90: 2000214 | K90: =SUM(J87:J90) -> 7413753 | L90: =(K90-9000000)/4 -> -396561.75
A91: 2030_Q1 | B91: 19.75 | C91: 96 | D91: 57 | E91: 16.1779925 | F91: 78.63733063 | G91: 3.5 | H91: 1 | J91: 2154621
A92: 2030_Q2 | B92: 20.25 | C92: 102 | D92: 58 | E92: 16.50503675 | F92: 83.13648138 | G92: 13.29932406 | H92: 2 | J92: 2201340
A93: 2030_Q3 | B93: 23.25 | C93: 101 | D93: 59 | E93: 18.85594764 | F93: 81.91185855 | G93: 19.9 | H93: 3 | J93: 1023541
A94: 2030_Q4 | B94: 24.14 | C94: 107 | D94: 60 | E94: 19.48034348 | F94: 86.34617866 | G94: 6.353949621 | H94: 4 | J94: 1987465 | K94: =SUM(J91:J94) -> 7366967
A96: Rakousko
A97: 2020_Q1 | B97: 16.1 | C97: 38.7 | D97: 17 | E97: =B97/(1+0.022/4)^(D97-17) -> 16.1 | F97: =C97/(1+0.022/4)^(D97-17) -> 38.7 | G97: 3.3 | H97: 1 | J97: =(5164.55-397.49*E97+216.824*F97-108.912*G97*H97)*0.65 -> 4417.81613 | K97: =J97 -> 4417.81613
A98: 2020_Q2 | B98: 11.3 | C98: 46.6 | D98: =D97+1 -> 18 | E98: =B98/(1+0.022/4)^(D98-17) -> 11.23818996 | F98: =C98/(1+0.022/4)^(D98-17) -> 46.34510194 | G98: 14.5 | H98: 2 | J98: =(5164.55-397.49*E98+216.824*F98-108.912*G98*H98)*0.65 -> 4932.046767 | K98: =J98 -> 4932.046767
A99: 2020_Q3 | B99: 12 | C99: 52.5 | D99: =D98+1 -> 19 | E99: 11.86908107 | F99: 51.92722967 | G99: 17.4 | H99: 3 | J99: 3913.371939 | K99: 3913.371939
A100: 2020_Q4 | B100: 15 | C100: 61 | D100: 20 | E100: 14.75519775 | F100: 60.00447084 | G100: 2.2 | H100: 4 | J100: 7378.468651 | K100: 7378.468651 | L100: =SUM(K97:K100) -> 20641.70349 | N100: =SUM(J97:J100) -> 20641.70349
A101: 2021_Q1 | B101: 15.15 | C101: 65 | D101: 21 | E101: 14.82123294 | F101: 63.58944828 | G101: 2 | H101: 1 | J101: =(5164.55-397.49*E101+216.824*F101-108.912*G101*H101)*0.5 -> 6421.576325 | K101: 6421.576325
A102: 2021_Q2 | B102: 14 | C102: 60 | D102: 22 | E102: 13.62127186 | F102: 58.37687942 | G102: 14.5 | H102: 2 | J102: =(5164.55-397.49*E102+216.824*F102-108.912*G102*H102)*0.5 -> 4624.645575 | K102: 4624.645575
A103: 2021_Q3 | B103: 15 | C103: 67.5 | D103: 23 | E103: 14.51439071 | F103: 65.31475818 | G103: 15.8 | H103: 3 | J103: =(5164.55-397.49*E103+216.824*F103-108.912*G103*H103)*0.5 -> 4197.301583 | K103: 4197.301583
A104: 2021_Q4 | B104: 14 | C104: 68 | D104: 24 | E104: 13.472665 | F104: 65.43865858 | G104: 4.5 | H104: 4 | J104: =(5164.55-397.49*E104+216.824*F104-108.912*G104*H104)*0.5 -> 6018.778048 | K104: 6018.778048 | L104: =SUM(K101:K104) -> 21262.30153 | N104: =SUM(J101:J104) -> 21262.30153
A105: 2022_Q1 | B105: 12.65 | C105: 71.5 | D105: 25 | E105: 12.10692706 | F105: 68.43045731 | G105: 3.087630131 | H105: 1 | J105: =(5164.55-397.49*E105+216.824*F105-108.912*G105*H105)*0.45 -> 6683.963879 | K105: 6683.963879
A106: 2022_Q2 | B106: 13.25 | C106: 65.69 | D106: 26 | E106: 12.61180374 | F106: 62.52599153 | G106: 12.12968577 | H106: 2 | J106: =(5164.55-397.49*E106+216.824*F106-108.912*G106*H106)*0.45 -> 4979.917371 | K106: 4979.917371
A107: 2022_Q3 | B107: 15.25 | C107: 74 | D107: 27 | E107: 14.43607383 | F107: 70.0504566 | G107: 16.24530652 | H107: 3 | J107: =(5164.55-397.49*E107+216.824*F107-108.912*G107*H107)*0.45 -> 4188.171935 | K107: 4188.171935
A108: 2022_Q4 | B108: 17.25 | C108: 74.5 | D108: 28 | E108: 16.24000936 | F108: 70.13801143 | G108: 4.02879878 | H108: 4 | J108: =(5164.55-397.49*E108+216.824*F108-108.912*G108*H108)*0.45 -> 5472.798633 | K108: 5472.798633 | L108: =SUM(K105:K108) -> 21324.85182 | N108: =SUM(J105:J108) -> 21324.85182
A109: 2023_Q1 | B109: 18.15 | C109: 73 | D109: 29 | E109: 16.99384803 | F109: 68.34991218 | G109: 2.648455768 | H109: 1 | J109: =(5164.55-397.49*E109+216.824*F109-108.912*G109*H109)*0.4 -> 5176.447237 | K109: 5176.447237
A110: 2023_Q2 | B110: 15.65 | C110: 65.9 | D110: 30 | E110: 14.57294641 | F110: 61.36467529 | G110: 14.31296257 | H110: 2 | J110: =(5164.55-397.49*E110+216.824*F110-108.912*G110*H110)*0.4 -> 3823.830851 | K110: 3823.830851
A111: 2023_Q3 | B111: 15.25 | C111: 74.5 | D111: 31 | E111: 14.12279954 | F111: 68.99334855 | G111: 15.09277257 | H111: 3 | J111: =(5164.55-397.49*E111+216.824*F111-108.912*G111*H111)*0.4 -> 3831.576033 | K111: 3831.576033
A112: 2023_Q4 | B112: 16.15 | C112: 78 | D112: 32 | E112: 14.87446666 | F112: 71.83952939 | G112: 4.3 | H112: 4 | J112: =(5164.55-397.49*E112+216.824*F112-108.912*G112*H112)*0.4 -> 5182.138387 | K112: 5182.138387 | L112: =SUM(K109:K112) -> 18013.99251 | N112: =SUM(J109:J112) -> 18013.99251
A113: 2024_Q1 | B113: 17.75 | C113: 79.5 | D113: 33 | E113: 16.25867532 | F113: 72.8205458 | G113: 2.797833659 | H113: 1 | J113: =(5164.55-397.49*E113+216.824*F113-108.912*G113*H113)*0.35 -> 4965.244729 | K113: 4965.244729
A114: 2024_Q2 | B114: 17.25 | C114: 82 | D114: 34 | E114: 15.71425606 | F114: 74.69965199 | G114: 14.28176106 | H114: 2 | J114: =(5164.55-397.49*E114+216.824*F114-108.912*G114*H114)*0.35 -> 4201.420083 | K114: 4201.420083 | S114: =21750*0.95 -> 20662.5
A115: 2024_Q3 | B115: 16.25 | C115: 77 | D115: 35 | E115: 14.72231198 | F115: 69.76110906 | G115: 16.87942796 | H115: 3 | J115: =(5164.55-397.49*E115+216.824*F115-108.912*G115*H115)*0.35 -> 3123.170452 | K115: 3123.170452
A116: 2024_Q4 | B116: 18.3 | C116: 81 | D116: 36 | E116: 16.48889931 | F116: 72.98365269 | G116: 1.94 | H116: 4 | J116: =(5164.55-397.49*E116+216.824*F116-108.912*G116*H116)*0.35 -> 4756.439731 | K116: 4756.439731 | L116: =SUM(K113:K116) -> 17046.27499 | N116: =SUM(J113:J116) -> 17046.27499
A117: 2025_Q1 | B117: 19.75 | C117: 79.6 | D117: 37 | E117: 17.69805748 | F117: 71.32989243 | G117: 2.786525931 | H117: 1 | J117: =(5164.55-397.49*E117+216.824*F117-108.912*G117*H117)*0.3 -> 3987.688685 | K117: 3987.688685
A118: 2025_Q2 | B118: 15.75 | C118: 86.6 | D118: 38 | E118: 14.03644035 | F118: 77.17814188 | G118: 11.8838019 | H118: 2 | J118: =(5164.55-397.49*E118+216.824*F118-108.912*G118*H118)*0.3 -> 4119.210449 | K118: 4119.210449
A119: 2025_Q3 | B119: 15.25 | C119: 85.7 | D119: 39 | E119: 13.51649833 | F119: 75.95828899 | G119: 16.72056807 | H119: 3 | J119: =(5164.55-397.49*E119+216.824*F119-108.912*G119*H119)*0.3 -> 3239.47368 | K119: 3239.47368
A120: 2025_Q4 | B120: 18.25 | C120: 81.5 | D120: 40 | E120: 16.08700309 | F120: 71.84058916 | G120: 4.184213801 | H120: 4 | J120: 3757.214001 | K120: 3757.214001 | L120: =SUM(K117:K120) -> 15103.58681 | N120: =SUM(J117:J120) -> 15103.58681
A121: 2026_Q1 | B121: 19.5 | C121: 81.5 | D121: 41 | E121: 17.09483105 | F121: 71.44762721 | G121: 0.6718834187 | H121: 1 | J121: =(5164.55-397.49*E121+216.824*F121-108.912*G121*H121)*0.25 -> 3446.97744 | K121: 3446.97744
A122: 2026_Q2 | B122: 18.25 | C122: 95.5 | D122: 42 | E122: 15.91149532 | F122: 83.26289333 | G122: 14.33664771 | H122: 2 | J122: =(5164.55-397.49*E122+216.824*F122-108.912*G122*H122)*0.25 -> 3442.604339 | K122: 3442.604339
A123: 2026_Q3 | B123: 17.25 | C123: 99.5 | D123: 43 | E123: 14.95736705 | F123: 86.27582731 | G123: 15.24715109 | H123: 3 | J123: 3236.005749 | K123: 3236.005749
A124: 2026_Q4 | B124: 20.25 | C124: 84.5 | D124: 44 | E124: 17.46260395 | F124: 72.86864364 | G124: 4.175134951 | H124: 4 | J124: 3051.030289 | K124: 3051.030289 | L124: =SUM(K121:K124) -> 13176.61782 | N124: =SUM(J121:J124) -> 13176.61782
A125: 2027_Q1 | B125: 20.5 | C125: 86 | D125: 45 | E125: 17.58149344 | F125: 73.75650906 | G125: 1.954497104 | H125: 1 | J125: =(5164.55-397.49*E125+216.824*F125-108.912*G125*H125)*0.2 -> 2791.079061 | K125: 2791.079061
A126: 2027_Q2 | B126: 18.25 | C126: 98 | D126: 46 | E126: 15.56620321 | F126: 83.58837889 | G126: 14.35633315 | H126: 2 | J126: =(5164.55-397.49*E126+216.824*F126-108.912*G126*H126)*0.2 -> 2794.790528 | K126: 2794.790528
A127: 2027_Q3 | B127: 17.75 | C127: 101 | D127: 47 | E127: 15.05691884 | F127: 85.67598888 | G127: 15.40289981 | H127: 3 | J127: =(5164.55-397.49*E127+216.824*F127-108.912*G127*H127)*0.2 -> 2544.700814 | K127: 2544.700814
A128: 2027_Q4 | B128: 20.25 | C128: 86 | D128: 48 | E128: 17.08365155 | F128: 72.55279176 | G128: 4.107578134 | H128: 4 | J128: =(5164.55-397.49*E128+216.824*F128-108.912*G128*H128)*0.18 -> 2216.82558 | K128: 2216.82558 | L128: =SUM(K125:K128) -> 10347.39598 | N128: =SUM(J125:J128) -> 10347.39598
A129: 2028_Q1 | B129: 20.25 | C129: 88 | D129: 49 | E129: 16.99020542 | F129: 73.8339791 | G129: 2.821212171 | H129: 1 | J129: =(5164.55-397.49*E129+216.824*F129-108.912*G129*H129)*0.15 -> 2116.924211 | K129: 2116.924211
A130: 2028_Q2 | B130: 18.25 | C130: 97 | D130: 50 | E130: 15.22840422 | F130: 80.94001145 | G130: 12.74004665 | H130: 2 | J130: =(5164.55-397.49*E130+216.824*F130-108.912*G130*H130)*0.15 -> 2082.909109 | K130: 2082.909109
A131: 2028_Q3 | B131: 16.75 | C131: 96 | D131: 51 | E131: 13.90030289 | F131: 79.6674076 | G131: 15.15980313 | H131: 3 | J131: 1793.980673 | K131: 1793.980673
A132: 2028_Q4 | B132: 21 | C132: 92 | D132: 52 | E132: 17.33191985 | F132: 75.93031555 | G132: 1.645088561 | H132: 4 | J132: =(5164.55-397.49*E132+216.824*F132-108.912*G132*H132)*0.12 -> 1682.654445 | K132: 1682.654445 | L132: =SUM(K129:K132) -> 7676.468439 | N132: =SUM(J129:J132) -> 7676.468439
A133: 2029_Q1 | B133: 20.2 | C133: 91.5 | D133: 53 | E133: 16.58046369 | F133: 75.10457562 | G133: 2.205777913 | H133: 1 | J133: =(5164.55-397.49*E133+216.824*F133-108.912*G133*H133)*0.08 -> 1169.457625 | K133: 1169.457625
A134: 2029_Q2 | B134: 19.25 | C134: 99.5 | D134: 54 | E134: 15.71426097 | F134: 81.22436191 | G134: 13.90267194 | H134: 2 | J134: =(5164.55-397.49*E134+216.824*F134-108.912*G134*H134)*0.08 -> 1080.107507 | K134: 1080.107507
A135: 2029_Q3 | B135: 17.75 | C135: 96.5 | D135: 55 | E135: 14.41051527 | F135: 78.34449147 | G135: 17.04329027 | H135: 3 | J135: =(5164.55-397.49*E135+216.824*F135-108.912*G135*H135)*0.08 -> 868.3859051 | K135: 868.3859051
A136: 2029_Q4 | B136: 19.65 | C136: 95 | D136: 56 | E136: 15.86578747 | F136: 76.70482491 | G136: 3.988572946 | H136: 4 | J136: =(5164.55-397.49*E136+216.824*F136-108.912*G136*H136)*0.05 -> 687.5945634 | K136: 687.5945634 | L136: =SUM(K133:K136) -> 3805.5456 | N136: =SUM(J133:J136) -> 3805.5456
A137: 2030_Q1 | B137: 19.65 | C137: 96 | D137: 57 | E137: 15.77900295 | F137: 77.08825869 | G137: 0.8 | H137: 1 | J137: 0 | K137: 0
A138: 2030_Q2 | B138: 20.25 | C138: 102 | D138: 58 | E138: 16.17185934 | F138: 81.45825446 | G138: 13.5 | H138: 2 | J138: 0 | K138: 0
A139: 2030_Q3 | B139: 23.25 | C139: 101 | D139: 59 | E139: 18.46612666 | F139: 80.21844269 | G139: 17.5 | H139: 3 | J139: 0 | K139: 0
A140: 2030_Q4 | B140: 24 | C140: 107 | D140: 60 | E140: 18.95754168 | F140: 84.51904001 | G140: 4.263121159 | H140: 4 | J140: =(5164.55-397.49*E140+216.824*F140-108.912*G140*H140)*0 -> 0 | K140: 0 | L140: =SUM(K137:K140) -> 0 | N140: =SUM(J137:J140) -> 0

Sheet menu
C1: CZ | E1: SK | F1: AT | I1: CZ
B2: Rok | C2: Země | D2: ENTRYÚEXIT | E2: Země2 | F2: Země3 | I2: Base Scénář CZ
B3: 2020_Q1 | C3: CZ/DE | D3: ENTRY | E3: SK/CZ | F3: AT/CZ | I3: Capacity4Gas DE/CZ_fáze1 | J3: Brandov - Gaspool Hora sv kateřiny přimda | K3: FID | L3: 2019 | M3: CZ/DE | N3: ENTRY | O3: TRUE | P3: =IF(O3=FALSE,0,665) -> 665
B4: 2020_Q2 | C4: CZ/PL | D4: EXIT | E4: SK/AT | F4: AT/SK | I4: Připojení přímo zákazník | J4: DN 80 PN 73,5, prumyslova zona | K4: FID | L4: 2020_Q1 | M4: CZ/DOM | N4: POD | O4: TRUE | P4: =IF(O4=TRUE,0.3,0) -> 0.3
B5: 2020_Q3 | C5: CZ/SK | D5: OBOJÍ | E5: SK/UA | F5: AT/DE | I5: Capacity4Gas SK/CZ | J5: Lanžhot - navýšení propojení mezi CZ SK | K5: FID | L5: 2020_Q1 | M5: CZ/SK | N5: EXIT | O5: TRUE | P5: =IF(O5=FALSE,0,333) -> 333
B6: 2020_Q4 | C6: CZ/AT | E6: SK/HU | F6: AT/IT | I6: Capacity4Gas DE/CZ_fáze2 | J6: Brandov - Gaspool Hora sv kateřiny přimda | K6: FID | L6: 2020_Q2 | M6: CZ/DE | N6: ENTRY | O6: TRUE | P6: =IF(Tabulka2[[#This Row],[Realizace]]=FALSE,0,454) -> 454
B7: 2021_Q1 | C7: CZ/DOM | E7: SK/PL | F7: AT/HU | I7: Moravia Capacity Extension | J7: Tvrdonice - Bezměrov | K7: nonFID | L7: 2023_Q2 | M7: CZ/DOM | N7: OBOJÍ | O7: FALSE | P7: =IF(Tabulka2[[#This Row],[Realizace]]=FALSE,0,158) -> 158
B8: 2021_Q2 | C8: ZÁS | E8: SK/DOM | F8: AT/SLO | I8: Připojení zásobníku plynu | J8: DN 500 | K8: FID | L8: 2022_Q2 | M8: ZÁS | N8: ENTRY | O8: TRUE | P8: =IF(Tabulka2[[#This Row],[Realizace]]=FALSE,0,73) -> 73
B9: 2021_Q3 | E9: ZÁS | F9: AT/SW | I9: Připojení zásobníku plynu | J9: DN 500 | K9: FID | L9: 2022_Q2 | M9: ZÁS | N9: EXIT | O9: TRUE | P9: =IF(Tabulka2[[#This Row],[Realizace]]=FALSE,0,94) -> 0
B10: 2021_Q4 | F10: AT/DOM | I10: Projekt Moravia | J10: Tvrodnice - Libhošť | K10: nonFID | L10: 2023_Q4 | M10: CZ/DOM | N10: EXIT | O10: FALSE | P10: =IF(Tabulka2[[#This Row],[Realizace]]=FALSE,0,142) -> 142 | Q10: závisí na realizaci CZ/PL, 134-157
B11: 2022_Q1 | I11: Připojení elektrárny | J11: DN 200 PN 63 | K11: FID | L11: 2023_Q1 | M11: CZ/DOM | N11: VEL | O11: TRUE | P11: =IF(Tabulka2[[#This Row],[Realizace]]=FALSE,0,5.3) -> 5.3
B12: 2022_Q2 | I12: Připojení přímo zákazník | J12: DN 100 PN 63, zkapalnovani plynu | K12: FID | L12: 2023_Q2 | M12: CZ/DOM | N12: POD | O12: TRUE | P12: 0.7
B13: 2022_Q3 | I13: CZ-PL propojovací plynovod | J13: Tvrdonice - Hať PL-CZ | K13: non FID | L13: 2023_Q2 | M13: CZ/PL | N13: EXIT | O13: FALSE | P13: =IF(Tabulka2[[#This Row],[Realizace]]=FALSE,0,153) -> 153
B14: 2022_Q4 | I14: CZ-PL propojovací plynovod | J14: Tvrdonice - Hať CZ-PL | K14: non FID | L14: 2023_Q2 | M14: CZ/PL | N14: ENTRY | O14: FALSE | P14: =IF(Tabulka2[[#This Row],[Realizace]]=FALSE,0,219) -> 219
B15: 2023_Q1 | I15: Obousměrné AT-CZ propojení (BACI) | J15: Reinthal - Břeclav | K15: non FID | L15: 2024_Q2 | M15: CZ/AT | N15: OBOJÍ | O15: FALSE | P15: =IF(Tabulka2[[#This Row],[Realizace]]=FALSE,0,201) -> 0 | Q15: PCI, min. 201
B16: 2023_Q2 | I16: zvýšení kapacity zásobníků | K16: FID | L16: 2021_Q2 | M16: CZ/DOM | N16: ZAS | O16: TRUE | P16: 1400
B17: 2023_Q3 | I17: zvýšení kapacity zásobníků | K17: FID | L17: 2023_Q2 | M17: CZ/DOM | N17: ZAS | O17: TRUE | P17: 6000
B18: 2023_Q4
B19: 2024_Q1 | I19: SK
B20: 2024_Q2 | I20: Base scénář SK
B21: 2024_Q3 | I21: NAFTA Velke Kapušany PZZP | J21: Veľké Kapušany | K21: NONfid | M21: ZÁS | N21: OBOJÍ | O21: FALSE | P21: 39.6 | Q21: 2 % vodik
B22: 2024_Q4 | I22: Polsko-slovenské propojení | J22: Veľké Kapušany | K22: FID | L22: 2021_Q4 | M22: SK/PL | N22: ENTRY | O22: TRUE | P22: 144.6575342
B23: 2025_Q1 | I23: Polsko-slovenské propojení | J23: Veľké Kapušany | K23: FID | L23: 2021_Q4 | M23: SK/PL | N23: EXIT | O23: TRUE | P23: 173.8783562
B24: 2025_Q2 | I24: Capacity4Gas SK/CZ | J24: Lanžhot - navýšení propojení mezi CZ SK | K24: FID | L24: 2020_Q1 | M24: SK/CZ | N24: EXIT | O24: TRUE | P24: 159
B25: 2025_Q3 | I25: Navýšenie reverzného toku zemného plynu v smere na Ukrajinu | J25: Budince | K25: nonFID | L25: 2023_Q2 | M25: SK/UK | N25: ENTRY | O25: FALSE | P25: 0
B26: 2025_Q4 | I26: Plynovod Eastring | J26: Velke Zlievce | K26: nonFID | L26: 2025_Q2 | M26: SK/HU | N26: ENTRY | O26: FALSE | P26: 578.630137
B27: 2026_Q1 | I27: Plynovod Eastring | J27: Velke Zlievce | K27: nonFID | L27: 2030_Q2 | M27: SK/HU | N27: EXIT | O27: FALSE | P27: 578.630137
B28: 2026_Q2 | I28: Zvýšení technické kapacity přepravní sítě ve směru východ-západ | J28: V-Z | K28: nonFID | L28: 2025_Q2 | M28: SK/DOM | N28: EXIT | O28: FALSE
B29: 2026_Q3 | I29: Projekt HUSK - navýšení přepravní kapacity Velke Zlievce | K29: nonFID | L29: 2023_Q1 | M29: SK/HU | N29: ENTRY | O29: FALSE | P29: 154.704
B30: 2026_Q4 | I30: Projekt HUSK - navýšení přepravní kapacity Velke Zlievce | K30: nonFID | L30: 2023_Q2 | M30: SK/HU | N30: EXIT | O30: FALSE | P30: 154.704
B31: 2027_Q1 | I31: Capacity4Gas SK/CZ | J31: Lanžhot - navýšení propojení mezi CZ SK | K31: FID | L31: 2025_Q3 | M31: SK/CZ | N31: ENTRY | O31: TRUE | P31: 174
B32: 2027_Q2 | I32: Capacity4Gas SK/CZ | J32: Lanžhot - navýšení propojení mezi CZ SK | K32: FID | L32: 2020_Q1 | M32: SK/CZ | N32: ENTRY | O32: TRUE | P32: =1570-697 -> 873
B33: 2027_Q3 | I33: Navýšení kapacity směr UK | K33: nonFID | L33: 2020_Q1 | M33: SK/UK | N33: EXIT | O33: FALSE | P33: 31
B34: 2027_Q4
B35: 2028_Q1
B36: 2028_Q2
B37: 2028_Q3
B38: 2028_Q4
B39: 2029_Q1
B40: 2029_Q2
B41: 2029_Q3 | I41: AT
B42: 2029_Q4 | I42: Base scénář AT | M42: nesmí zůstat prázdné | O42: Realizace | P42: Kapacita2 | Q42: Poznámka
B43: 2030_Q1 | I43: Elektrárna Mellach | J43: od roku 2020 výhradně na ZP | K43: FID | L43: 2020_Q1 | M43: AT/DOM | N43: VEL | O43: TRUE | P43: 40
B44: 2030_Q2 | I44: Obousměrné AT-CZ propojení (BACI) | J44: Reinthal - Břeclav | K44: non FID | L44: 2024_Q2 | M44: AT/CZ | N44: OBOJÍ | O44: FALSE | P44: 201
B45: 2030_Q3 | I45: Baumgarten propojení kapacit | J45: Baumgarten - Mosonmagyaróvár II | K45: nonFID | L45: 2021_Q4 | M45: AT/HU | N45: ENTRY | O45: FALSE | P45: 0 | Q45: ¨PCI
B46: 2030_Q4 | I46: TAG reserve flow | J46: Arnoldstein | K46: FID | L46: 2020_Q4 | M46: AT/IT | N46: ENTRY | O46: TRUE | P46: 268
I47: TAG reserve flow | J47: Murfeld | K47: FID | L47: 2020_Q4 | M47: AT/SLO | N47: ENTRY | O47: TRUE | P47: 161
I48: TAG reserve flow | J48: Wetenfeld | K48: FID | L48: 2020_Q4 | M48: AT/DOM | O48: TRUE | P48: 429
I49: ROHUAT | J49: propojení Rumunsko - Maďarsko-Rakousko | K49: nonFID | O49: FALSE | P49: NENÍ ZNÁMO
I50: Baumgarten - Mosonmagyaróvár II | J50: Baumgarten - Mosonmagyaróvár II | K50: nonFID | L50: 2023_Q3 | M50: AT/HU | N50: EXIT | O50: FALSE | P50: 256.8
I51: BACI | J51: CZ-AT propojeni | K51: nonFID | L51: 2026_Q1 | M51: AT/CZ | N51: OBOJÍ | O51: FALSE | P51: 201
I52: TAG reverse flow | J52: Murfeld | K52: FID | L52: 2020_Q4 | M52: AT/SLO | N52: EXIT | O52: TRUE | P52: 101
I63: Austria - Uberacken GCA 2014/02 cancelled
I64: Austria Uberacken GCA 2014/02 cancelled
I65: Austria Hungary - delays? - coordination between countries
I66: Austria Oberkappel BOG 2014/02 cancelled

Sheet Teplota
C3: Q1 | D3: Q2 | E3: Q3 | F3: Q4
A4: 2020 | B4: 8 | C4: =$C$18*COS($D$18*B4*B4+$F$18)+$E$18 -> 2.161236211 | D4: =$C$19*COS($D$19*B4*B4+$F$19)+$E$19 -> 11.68952249 | E4: =$C$20*COS($D$20*B4*B4+$F$20)+$E$20 -> 17.79219398 | F4: =$C$21*COS($D$21*B4*B4+$F$21)+$E$21 -> 5.110451515
A5: 2021 | B5: 9 | C5: =$C$18*COS($D$18*B5*B5+$F$18)+$E$18 -> -1.220567479 | D5: =$C$19*COS($D$19*B5*B5+$F$19)+$E$19 -> 11.09082375 | E5: =$C$20*COS($D$20*B5*B5+$F$20)+$E$20 -> 15.04523078 | F5: =$C$21*COS($D$21*B5*B5+$F$21)+$E$21 -> 5.682354137
A6: 2022 | B6: 10 | C6: -1.634726412 | D6: =$C$19*COS($D$19*B6*B6+$F$19)+$E$19 -> 11.08262371 | E6: =$C$20*COS($D$20*B6*B6+$F$20)+$E$20 -> 15.82074713 | F6: 3.678884906
A7: 2023 | B7: 11 | C7: -1.199688435 | D7: 14.83482179 | E7: 15.25863584 | F7: 4.431048984
A8: 2024 | B8: 12 | C8: 2.13653165 | D8: 13.39199175 | E8: 16.72993328 | F8: 3.845516819
A9: 2025 | B9: 13 | C9: 1.122253777 | D9: 14.46655569 | E9: 15.06890385 | F9: 4.248688628
A10: 2026 | B10: 14 | C10: 1.661324778 | D10: 11.87960877 | E10: 15.1710282 | F10: 3.699166503
A11: 2027 | B11: 15 | C11: 0.6733786521 | D11: 14.44702601 | E11: 15.88070855 | F11: 5.185293369
A12: 2028 | B12: 16 | C12: 1.696305302 | D12: 13.52403838 | E12: 16.49272083 | F12: 4.325829555
A13: 2029 | B13: 17 | C13: 1.209202367 | D13: 11.47758928 | E13: 17.59871221 | F13: 5.76014105
A14: 2030 | B14: 18 | C14: 2.074061885 | D14: 11.53619797 | E14: 16.5689006 | F14: 5.898161056
C17: a | D17: k | E17: f | F17: d
B18: Q1 | C18: 1.99617 | D18: 0.94288 | E18: 0.30653 | F18: 2.86627
B19: Q2 | C19: 1.94779 | D19: 1.03258 | E19: 12.8921 | F19: 0.793681
B20: Q3 | C20: -1.39821 | D20: 0.923194 | E20: 16.4205 | F20: 0.800906
B21: Q4 | C21: -1.14997 | D21: 1.44354 | E21: 4.82 | F21: 0.0350846
B25: VEL | C25: závisí na ceně, teplotě (kvůli elektřině) i na ceně elektřiny, cena emisních povolenek
E40: Q1 | F40: Q2 | G40: Q3 | H40: Q4
C41: 2020 | D41: 8 | E41: 2.161236211 | F41: 11.68952249 | G41: 17.79219398 | H41: 5.110451515
C42: 2021 | D42: 9 | E42: =-1.22056747923053+0.5 -> -0.7205674792 | F42: 11.09082375 | G42: 15.04523078 | H42: 5.682354137
C43: 2022 | D43: 10 | E43: =-1.63472641213791+0.8 -> -0.8347264121 | F43: 11.08262371 | G43: 15.82074713 | H43: 3.678884906
C44: 2023 | D44: 11 | E44: =-1.19968843471445+0.5 -> -0.6996884347 | F44: 14.83482179 | G44: 15.25863584 | H44: 4.431048984
C45: 2024 | D45: 12 | E45: 2.13653165 | F45: 13.39199175 | G45: 16.72993328 | H45: 3.845516819
C46: 2025 | D46: 13 | E46: 1.122253777 | F46: 14.46655569 | G46: 15.06890385 | H46: 4.248688628
C47: 2026 | D47: 14 | E47: 1.661324778 | F47: 11.87960877 | G47: 15.1710282 | H47: 3.699166503
C48: 2027 | D48: 15 | E48: 0.6733786521 | F48: 14.44702601 | G48: 15.88070855 | H48: 5.185293369
C49: 2028 | D49: 16 | E49: 1.696305302 | F49: 13.52403838 | G49: 16.49272083 | H49: 4.325829555
C50: 2029 | D50: 17 | E50: 1.209202367 | F50: 11.47758928 | G50: 17.59871221 | H50: 5.76014105
C51: 2030 | D51: 18 | E51: 2.074061885 | F51: 11.53619797 | G51: 16.5689006 | H51: 5.898161056
E54: a | F54: k | G54: f | H54: d
D55: Q1 | E55: 1.99617 | F55: 0.94288 | G55: 0.30653 | H55: 2.86627
D56: Q2 | E56: 1.94779 | F56: 1.03258 | G56: 12.8921 | H56: 0.793681
D57: Q3 | E57: -1.39821 | F57: 0.923194 | G57: 16.4205 | H57: 0.800906
D58: Q4 | E58: -1.14997 | F58: 1.44354 | G58: 4.82 | H58: 0.0350846
D62: VEL | E62: závisí na ceně, teplotě (kvůli elektřině) i na ceně elektřiny, cena emisních povolenek
D67: Q1 | E67: Q2 | F67: Q3 | G67: Q4
B68: 2020 | C68: 6 | D68: =$D$82*COS($E$82*C68*C68+$G$82)+$F$82 -> 2.877476313 | E68: =$D$83*COS($E$83*C68*C68+$G$83)+$F$83 -> 18.09916191 | F68: =$D$84*COS($E$84*C68*C68+$G$84)+$F$84 -> 21.38549433 | G68: =$D$85*COS($E$85*C68*C68+$G$85)+$F$85 -> 5.388866596
B69: 2021 | C69: 7 | D69: =$D$82*COS($E$82*C69*C69+$G$82)+$F$82 -> 3.635926616 | E69: =$D$83*COS($E$83*C69*C69+$G$83)+$F$83 -> 14.06251882 | F69: =$D$84*COS($E$84*C69*C69+$G$84)+$F$84 -> 20.42748486 | G69: =$D$85*COS($E$85*C69*C69+$G$85)+$F$85 -> 7.535086193
B70: 2022 | C70: 8 | D70: 2.632712715 | E70: 16.99716618 | F70: 20.44359612 | G70: 6.56389124
B71: 2023 | C71: 9 | D71: 5.267400402 | E71: 13.12891266 | F71: 21.23839303 | G71: 7.127420705 | K71: 2.852896598 | L71: 13.29932406 | M71: 20.56672235 | N71: 6.353949621
B72: 2024 | C72: 10 | D72: 3.637321605 | E72: 18.9523143 | F72: 20.53621257 | G72: 6.804624947
B73: 2025 | C73: 11 | D73: 4.105973373 | E73: 18.96922172 | F73: 21.08172155 | G73: 6.257245361
B74: 2026 | C74: 12 | D74: =$D$82*COS($E$82*C74*C74+$G$82)+$F$82 -> 5.028508943 | E74: 13.79459666 | F74: 20.63426442 | G74: 5.032260015
B75: 2027 | C75: 13 | D75: 3.959263939 | E75: 18.33822035 | F75: 20.72276671 | G75: 5.259700968
B76: 2028 | C76: 14 | D76: 3.362938187 | E76: 16.34939112 | F76: 20.77327038 | G76: 7.386415513
B77: 2029 | C77: 15 | D77: 5.056091531 | E77: 15.2895352 | F77: 20.43614083 | G77: 5.002176861
B78: 2030 | C78: 16 | D78: 2.852896598 | E78: 13.29932406 | F78: 20.56672235 | G78: 6.353949621
D81: a | E81: k | F81: f | G81: d
C82: Q1 | D82: 1.36688 | E82: 0.914059 | F82: 3.97935 | G82: 1.01817
C83: Q2 | D83: 3.14896 | E83: 1.19162 | F83: 15.8203 | G83: 0.322311
C84: Q3 | D84: 0.556394 | E84: 1.24912 | F84: 20.9724 | G84: -1.7201
C85: Q4 | D85: -1.32321 | E85: 0.76752 | F85: 6.26768 | G85: 2.94077

Sheet Historie toky
C2: CZ-DE | E2: CZ-SK | G2: CZ-PL | I2: CZ-AT
C3: entry | D3: exit | E3: entry | F3: exit | G3: entry | H3: exit | I3: entry | J3: exit | K3: ENTRY-EXIT
A4: GWh | B4: 2009 | C4: 101628.6 | D4: 267049.3 | E4: 262977.2 | F4: 5781.3 | G4: 0 | H4: 0 | I4: 0 | J4: 311.8 | K4: =C4+E4+G4+I4-D4-F4-H4-J4 -> 91463.4
B5: 2010 | C5: 81280 | D5: 294685.9 | E5: 346594.5 | F5: 44175.3 | G5: 0 | H5: 3 | I5: 0 | J5: 584.7 | K5: =C5+E5+G5+I5-D5-F5-H5-J5 -> 88425.6
B6: 2011 | C6: 99778.9 | D6: 285555.1 | E6: 313286.6 | F6: 27602.9 | G6: 0 | H6: 2372.1 | I6: 0 | J6: 549.2 | K6: 96986.2
B7: 2012 | C7: 227495.4 | D7: 258212.2 | E7: 193223.4 | F7: 77223.8 | G7: 0 | H7: 6367 | I7: 0 | J7: 71.8 | K7: 78844
B8: 2013 | C8: 333485.9 | D8: 307072.7 | E8: 128681.1 | F8: 58697.2 | G8: 0 | H8: 6323.4 | I8: 0 | J8: 0 | K8: 90073.7
B9: 2014 | C9: 383075 | D9: 206786.8 | E9: 5347.3 | F9: 100241.2 | G9: 0 | H9: 4473.5 | I9: 0 | J9: 0 | K9: 76920.8
B10: 2015 | C10: 380205.7 | D10: 183958.6 | E10: 142.8 | F10: 116549.4 | G10: 0 | H10: 184.8 | I10: 0 | J10: 0 | K10: 79655.7
B11: 2016 | C11: 345084.1 | D11: 247382 | E11: 17761.1 | F11: 28622.9 | G11: 0 | H11: 64.7 | I11: 0 | J11: 0 | K11: 86775.6
B12: 2017 | C12: 370577.7 | D12: 241348 | E12: 2795.7 | F12: 35974.7 | G12: 0 | H12: 1259.2 | I12: 0 | J12: 9.6 | K12: 94781.9
B13: 2018 | C13: 409678.9 | D13: 297451.7 | E13: 14427.9 | F13: 37396 | G13: 0 | H13: 3913.7 | I13: 0 | J13: 13.8 | K13: 85331.6
B14: 2019 | C14: =67302+299974 -> 367276 | D14: =238894 -> 238894 | E14: 16613 | F14: 48194 | G14: 0 | H14: 4698 | I14: 0 | K14: 92103
M17: Projekty
L18: 2009 | M18: NS 1 | N18: zahájení konec 2011 první fáze | O18: konec 2012 druhá fáze | R18: to mělo předpokládám vliv na dovoz přes slovensko
L19: 2010 | N19: 2011-2015 | O19: zvýšení kapacity zpětného toku ve směru západ východ
L20: 2011
L21: 2012 | M21: NS 2 | N21: ještě méně plynu přes SK?
L22: 2013
L23: 2014
L24: 2015
L25: 2016
L26: 2017
L27: 2018
L28: 2019 | M28: nárůst kvůli počeradům - k 8.12. 7 000 GWh - hodně v baseloadu - vysoké využití instalovaného výkonu
B31: ZÁSOBNÍKY
C32: do | D32: z | E32: na konci předchozího roku | F32: na konci sledovaného roku | G32: SALDO ZÁSOBNÍKY | I32: dodávka do DS | J32: VS, ztráty | M32: bilanční odchylka
A33: GWh | B33: 2009 | C33: 23467.9 | D33: 29777.2 | E33: 23353.2 | F33: 29169.9 | G33: =D33-C33 -> 6309.3 | I33: 1174.9 | J33: 23.286 | L33: =K4-G33+I33 -> 86329 | M33: =L33-C47 -> 112.8
B34: 2010 | C34: 23934.8 | D34: 16227.4 | E34: 23859.9 | F34: 15972.3 | G34: =D34-C34 -> -7707.4 | I34: 1455.93 | J34: 227.123 | L34: =K5-G34+I34 -> 97588.93 | M34: =L34-C48 -> 2450.53
B35: 2011 | C35: 9304.4 | D35: 19302.7 | E35: 15972.3 | F35: 27416.5 | G35: 9998.3 | I35: 1452.94 | J35: 114.628 | L35: 88440.84 | M35: 2795.24
B36: 2012 | C36: 23834.1 | D36: 16352.9 | E36: 27416.5 | F36: 20428.6 | G36: -7481.2 | I36: 1691.712 | J36: 125.424 | L36: 88016.912 | M36: 1691.112
B37: 2013 | C37: 23677.8 | D37: 26513.4 | E37: 20428.6 | F37: 23283 | G37: 2835.6 | I37: 1647.009 | J37: 126.841 | L37: 88885.109 | M37: 916.509
B38: 2014 | C38: 22916.8 | D38: 22677.2 | E38: 23283 | F38: 23043.4 | G38: -239.6 | I38: 1552.146 | J38: 262.115 | L38: 78712.546 | M38: 1303.446
B39: 2015 | C39: 29877.4 | D39: 28409.9 | E39: 23043.4 | F39: 21576 | G39: -1467.5 | I39: 1658.191 | J39: 64.021 | L39: 82781.391 | M39: 1713.491
B40: 2016 | C40: 29879.4 | D40: 28390.6 | E40: 21576 | F40: 20012.8 | G40: -1488.8 | I40: 1439.391 | J40: 33.245 | L40: 89703.791 | M40: 1460.591
B41: 2017 | C41: 25481.6 | D41: 29988.3 | E41: 20012.8 | F41: 24176.5 | G41: 4506.7 | I41: 1498.535 | J41: 81.011 | L41: 91773.735 | M41: 777.535
B42: 2018 | C42: 31155.9 | D42: 31441.2 | E42: 24176.5 | F42: 23710 | G42: 285.3 | I42: 1347.545 | J42: 101.652 | L42: 86393.845 | M42: -912.555
B43: 2019 | C43: 25172 | D43: 13570 | E43: 23710 | F43: 34962 | G43: =D43-C43 -> -11602
B45: SPOTŘEBA
A47: GWh | B47: 2009 | C47: 86216.2
B48: 2010 | C48: 95138.4
B49: 2011 | C49: 85645.6
B50: 2012 | C50: 86325.8
B51: 2013 | C51: 87968.6
B52: 2014 | C52: 77409.1
B53: 2015 | C53: 81067.9
B54: 2016 | C54: 88243.2
B55: 2017 | C55: 90996.2
B56: 2018 | C56: 87306.4
B57: 2019 | C57: 91397
B69: Vlastní těžba plynu | E69: GWh
C70: 2009 | D70: 1198.186 | E70: 86216.2 | F70: =D70/E70 -> 0.01389745779
C71: 2010 | D71: 1683.053 | E71: 95138.4 | F71: =D71/E71 -> 0.01769057499 | G71: =D71/E70 -> 0.01952130806
C72: 2011 | D72: 1567.568 | E72: 85645.6 | F72: 0.01830296011 | G72: =D72/E71 -> 0.01647671182
C73: 2012 | D73: 1817.136 | E73: 86325.8 | F73: 0.02104974411 | G73: 0.02121692183
C74: 2013 | D74: 1773.85 | E74: 87968.6 | F74: 0.02016458145 | G74: 0.02054831812
C75: 2014 | D75: 1814.261 | E75: 77409.1 | F75: 0.02343730905 | G75: 0.02062396128
C76: 2015 | D76: 1722.212 | E76: 81067.9 | F76: 0.02124406824 | G76: 0.02224818529
C77: 2016 | D77: 1472.636 | E77: 88243.2 | F77: 0.01668837939 | G77: 0.01816546377
C78: 2017 | D78: 1579.547 | E78: 90996.2 | F78: 0.0173583842 | G78: 0.01789992883
C79: 2018 | D79: 1476.504 | E79: 87306.4 | F79: 0.01691174988 | G79: 0.01622599625
C80: 2019 | D80: 1410.2 | E80: 91397 | F80: 0.01542939046 | G80: 0.01615230957
E82: podíl v kvartálech
C83: Q1 | D83: 33.8 | E83: =D83/$D$87 -> 0.2467153285
C84: Q2 | D84: 32.4 | E84: =D84/$D$87 -> 0.2364963504
C85: Q3 | D85: 33 | E85: 0.2408759124
C86: Q4 | D86: 37.8 | E86: 0.2759124088
D87: =SUM(D83:D86) -> 137
E88: =25+24+24+28 -> 101
